Workbook

Sheet 01.07.16
A1: Мониторинг оценки качества организации и осуществления бюджетного процесса по итогам исполнения местных бюджетов за 1 полугодие 2016 год
A2: Муниципальное образование | B2: Р 1 "Соблюдение требований статьи 92.1 Бюджетного кодекса Российской Федерации по предельному объему дефицита бюджета муниципального образования за отчетный период | J2: Р2 Соблюдение требований статьи 107 Бюджетного кодекса Российской Федерации по предельному объему муниципального долга за отчетный период | Q2: Р3 Соблюдение верхнего предела муниципального долга, установленного решением о бюджете на соответствующий финансовый год за отчетный год | V2: Р4 Соблюдение установленных Правительством Кировской области нормативов формирования расходов на содержание органов местного самоуправления за отчетный период | AA2: Р5 Соблюдение установленных Правительством Кировской области нормативов формирования расходов на оплату труда депутатов, выборных должностных лиц и муниципальных служащих органов местного самоуправления за отчетный период | AF2: Р6 Сохранение на безопасном уровне долговой нагрузки в бюджете поселения за отчетный год | AK2: Р10 Соотношение выплат по муниципальным гарантиям к общему объему предоставленных гарантий за отчетный период | AP2: Р 7 Удельный вес расходов бюджета, формируемых в рамках программ, в общем объеме расходов бюджета муниципального района (городского округа) за отчетный период | AT2: Р12 Доля автономных учреждений в общем числе муниципальных учреждений за отчетный период | AX2: Р 8 Исполнение бюджета поселения налоговым и неналоговым доходам к первоначально утвержденному плану за отчетный год | BB2: Р 9. Отклонение расходов бюджета в IV квартале от среднего объема расходов за I-III каврталы без учета расходов, произведенных за счет целевых средств, поступивших из областного бюджета за отчетный год | BH2: Р10 Динамика соотношения объема налоговых и неналоговых доходов бюджета района (городского округа) к объему дотации на выравнивание бюджетной обеспеченности и субсидии на выравнивание бюджетной обеспеченности | BN2: Р16 Отклонение расходов бюджета в IV квартале от среднего объема расходов за I-Ш кварталы, без учета расходов, произведенных за счет целевых средств, поступивших из областного бюджета за отчетный год | BT2: Р11 Наличие фактов нарушения организации бюджетного процесса, установленных в ходе контрольных мероприятий федеральных, областных контрольных и финансовых органов, соответсвующих органов государственного финансвого контроля Кировской области, Кильмезского района за отчетный год | BV2: Р12 Наличие просроченной кредиторской задолженности за отчетный период | BX2: Р 18 Динамика удельного веса дебиторской задолженности к объему расходов бюджета за отчетный год | CD2: Р13 Динамика удельного веса дебиторской задолженности к объему расходов бюджета за отчетный год | CJ2: Р14 Динамика задолженности по налоговым платежам (без учета пений и штрафных санкций) в бюджет поселений за отчетный период | CN2: Р15 Наличие фактов использования средств не по целевому назначению за отчетный период | CP2: Р16 Размещение в средствах массовой информации и (или) на официальном сайте администрации муниципального района (городского округа) проекта местного бюджета, решения об утверждении местного бюджета, годового отчета о его исполнении, ежеквартальных сведений о ходе исполнения местного бюджета и о численности муниципальных служащих органов местного самоуправ-ления, работников муниципальных учреж-дений с указанием фактических затрат на их денежное содержание за отчетный период | CW2: P17 выполнение кассового плана поступлений доходов по местным налогам за отчетный период | DA2: Р18 Выполнение плановых показателей по привлечению средств самооблажения за отчетный период | DE2: Р19 общественные работы за отчетный приод | DG2: Р20 Выполнение кассового плана поступлений доходов от использования имущества находящегося в собственности поселений за отчетный период | DK2: Р22 Проведение мониторинга и оценки качества организации и осуществления бюджетного процесса в городских и сельских поселениях района с формированием публикуемого рейтинга качества управления муниципальными финансами | DM2: Р 25 МПА, устанавливающий порядок определения объема и предоставления субсидий из местных бюджетов автономным учреждениям | DO2: Р21 Своевременность предоставления бюджетной отчесности по перечню форм, входящих в состав месячной, квартально и годовой отчетности за отчетный период | DQ2: Р22 Составление проекта бюджета на очередной финансовый год и плановый период за отчетный год | DS2: Р23 Проведение оценки эффективности реализации долгосрочных целевых программ и размещение ее результатов в официальных средствах массовой информации и или на сайте за отчетный год | DU2: Р24 МПА, устанавливающий порядок разработки, утверждения и реализации ведомствен-ных целевых программ | DW2: Р25 МПА, устанавливающий порядок проведения и критерии оценки эффективности реализации долгосрочных целевых программ | DY2: Р26 МПА, о назначении проведения публичных слушаний по проекту бюджета | EA2: Р30 МПА, устанавливающий порядок оценки инвестиционных проектов | EC2: Р27 Соответсвие положения о бюджетном процессе в поселении действующему бюджетному законадательству | EE2: Р28 МПА, утверждающий программу эффективности бюджетных расходов поселения | EG2: ОБЩЕЕ КОЛИЧЕСТВО БАЛЛОВ
B3: Аi- фактический размер дефицита бюджета | C3: Дi– фактический объем доходов бюджета | D3: Гi – фактический объем безвозмездных поступлений | E3: Нi - фактическое поступление налоговых доходов по дополнительным нормативам отчислений | F3: Средства от продажи акций, снижение остатков средств на счетах, бюджетные кредиты | G3: Расчет целевого значения индикатора | H3: Предельное значение индикатора | I3: Бальная оценка (1или 0) | J3: Аi - фактический объем муниципального долга | K3: Бi – уточненный годовой план доходов бюджета на конец | L3: Bi – уточненный годовой план безвозмездных поступлений | M3: Нi - уточненный годовой план налоговых доходов по дополнительным нормативам отчислений | N3: Расчет целевого значения индикатора | O3: Предельное значение индикатора | P3: Бальная оценка (1или 0) | Q3: Аi- фактический объем муниципального долга | R3: Bi – верхний предел муниципального долга , установленный решением о бюджете на соответствующий финансовый год | S3: Расчет целевого значения индикатора | T3: Предельное значение индикатора | U3: Бальная оценка (1или 0) | V3: Аi - уточненный план расходов на содержание органов местного самоуправления | W3: Б i – утвержденный Правительством области норматив формирования расходов на содержание органов местного самоуправления | X3: Расчет целевого значения индикатора | Y3: Предельное значение индикатора | Z3: Бальная оценка (1или 0) | AA3: Аi – фактические расходы на оплату труда депутатов, выборных должностных лиц и муниципальных служащих органов местного самоуправления | AB3: Б i – утвержденный в установленном порядке норматив формирования расходов на оплату труда депутатов, выборных должностных лиц и муниципальных служащих органов местного самоуправления | AC3: Расчет целевого значения индикатора | AD3: Предельное значение индикатора | AE3: Бальная оценка (1или 0) | AF3: Аi – объем мунципального долга на конец отчетного года | AG3: Б i – фактический объем доходов бюджета за отчетный финансовый год без учета безвозмедных поступлений и налоговых доходов по дополнительным нормативам отчислений должностных лиц и муниципальных служащих органов местного самоуправления | AH3: Расчет целевого значения индикатора | AI3: Предельное значение индикатора | AJ3: Бальная оценка (1или 0) | AK3: Аi – фактический объем выплат по муниципальным гарантиям в i-м муниципальном районе (городском округе) на конец отчетного периода | AL3: Бi – фактический объем предоставленных муниципальных гарантий в i- муниципальном районе (городском округе) на конец отчетного периода | AM3: Расчет целевого значения индикатора | AN3: Предельное значение индикатора | AO3: Бальная оценка (1или 0) | AP3: Аi – исполнение бюджета по расходам, формируемым в рамках муниципальных целевых программ и ведомственных программ, на конец отчетного периода | AQ3: Бi – исполнение бюджета по расходам на конец отчетного периода, за исключением расходов, осуществляемый за счет целевых межбюджетных трансфертов, предоставляемых из бюджетов другого уровня | AR3: Расчет целевого значения индикатора | AS3: Бальная оценка (2; 1; -1) | AT3: Аi – количество автономных учреждений в i-м муниципальном районе (городском округе) на конец отчетного периода | AU3: Бi – количество муниципальных учреждений в i-м муниципальном районе (городском округе) на конец отчетного периода | AV3: Расчет целевого значения индикатора | AW3: Бальная оценка (1или 2) | AX3: Аi – исполнение бюджета по налоговым и неналоговым доходам | AY3: Бi – первоначальный план в соответствии с решением о бюджете на отчетный финансовый год по налоговым и неналоговым доходам | AZ3: Расчет целевого значения индикатора | BA3: Бальная оценка (0; - 1) | BB3: А4i - исполнение по расходам i-го поселения в IV квартале текущего финансового года без учета расходов, произведенных за счет целевых средств, поступивших из областного бюджета | BC3: А1i - исполнение по расходам i-го поселения в I квартале текущего финансового года без учета расходов, произведенных за счет целевых средств, поступивших из областного бюджета | BD3: А2i - исполнение по расходам i-го поселения в II квартале текущего финансового года без учета расходов, произведенных за счет целевых средств, поступивших из областного бюджета | BE3: А3i - исполнение по расходам i-го поселения в III квартале текущего финансового года без учета расходов, произведенных за счет целевых средств, поступивших из областного бюджета | BF3: Расчет целевого значения индикатора | BG3: Бальная оценка | BH3: А1.i – уточненный план по налоговым и неналоговым доходам в соответствии с решением о бюджете на конец отчетного года без учета поступлений налоговых доходов по дополнительным нормативам отчислений | BI3: В1i – уточненный план по дотации на выравнивание бюджетной обеспеченности, субсидии на выравнивание бюджетной обеспеченности, поступлений налоговых доходов по дополнительным нормативам отчислений на конец отчетного года | BJ3: А2i - уточненный план по налоговым и неналоговым доходам на конец года, предшествующего отчетному без учета поступлений налоговых доходов по дополнительным нормативам отчислений | BK3: В 2i - уточненный план по дотации на выравнивание бюджетной обеспеченности, субсидии на выравнивание бюджетной обеспеченности, поступлений налоговых доходов по дополнительным нормативам отчислений на конец года, предшествующего отчетному | BL3: Расчет целевого значения индикатора | BM3: Бальная оценка | BN3: А4i - исполнение по расходам i-го муниципального района (городского округа) в IV квартале текущего финансового года без учета расходов, произведенных за счет целевых средств, поступивших из областного бюджет | BO3: А1i - исполнение по расходам i-го муниципального района (городского округа) в I квартале текущего финансового года без учета расходов, произведенных за счет целевых средств, поступивших из областного бюджета | BP3: А2i - исполнение по расходам i-го муниципального района (городского округа) во II квартале текущего финансового года без учета расходов, произведенных за счет целевых средств, поступивших из областного бюджета | BQ3: А3i - исполнение по расходам i-го муниципального района (городского округа) в III квартале текущего финансового года без учета расходов, произведенных за счет целевых средств, поступивших из областного бюджета | BR3: Расчет целевого значения индикатора | BS3: Бальная оценка | BT3: Аi – наличие фактов нарушения организации бюджетного процесса | BU3: Бальная оценка (0; -1) | BV3: Аi – объем просроченной кредиторской задолженности в i-м муниципальном районе (городском округе) на конец отчетного периода | BW3: Бальная оценка | BX3: А1i – объем дебиторской задолженности на конец отчетного года в i-м муниципальном районе (городском округе) | BY3: В1i – фактический объем расходов бюджета за отчетный год в i-м муниципальном районе (городском округе) | BZ3: А2i – объем дебиторской задолженности на конец года, предшествующего отчетному, в i-м муниципальном районе (городском округе) | CA3: В2i – фактический объем расходов бюджета за год, предшествующий отчетному, в i-м муниципальном районе (городском округе) | CB3: Расчет целевого значения индикатора | CC3: Бальная оценка | CD3: А1i объем дебиторской задолженности на конец отчетного года в i-том поселении | CE3: B1i- фактический объем расходов бюджета за отчетный год в i-том поселении | CF3: А2i -объем дебиторской задолженности на конец года предшествующего отчетному в i-том поселении | CG3: B1i- фактический объем расходов бюджета за года предшествующего отчетном в i-том поселении | CH3: Расчет целевого значения индикатора | CI3: Бальная оценка | CJ3: А1i – сумма задолженноси по налоговым платежам (без учета пений и штрафных санкций) в бюджет поселений на конец отчетного периода | CK3: В1i – сумма задолженноси по налоговым платежам (без учета пений и штрафных санкций) в бюджет поселений на начало года | CL3: Расчет целевого значения индикатора | CM3: Бальная оценка | CN3: Аi – наличие фактов использования средств не по целевому назначению Количество) | CO3: Бальная оценка (0;-1) | CP3: Пi – размещение проекта местного бюджета (+1) | CQ3: Бi – размещение решения об утверждении местного бюджета на отчетный финансовый год (+1) | CR3: Оi – размещение годового отчета об исполнении местного бюджета | CS3: Сi – размещение ежеквартальных сведений о ходе исполнения местного бюджета (+1) | CT3: Чi – размещение ежеквартальных сведений о численности муниципальных служащих органов местного самоуправления, работников муниципальных учреждений с указанием фактических затрат на их денежное содержание(+1) | CU3: Расчет целевого значения индикатора | CV3: Бальная оценка (0;1) | CW3: Аi - объем фактически поступивших на конец отчетного периода местных налогов в i-том поселении | CX3: Бi - объем местных налогов в i-том поселении в соответсвии с кассовым планом на отчетный период | CY3: Расчет целевого значения индикатора | CZ3: Бальная оценка (0;1) | DA3: Аi - объем фактически поступивших на конец отчетного периода средств самообложения в i-том поселении | DB3: Бi - расчетная сумма средств самообложения граждан, определяемая как произведение суммы платежа на количественный показатель установленный решением ОМСУв i-том поселении и предусмотренная в кассовом плане заотчетный период | DC3: Расчет целевого значения индикатора | DD3: Бальная оценка (0;1) | DE3: Ai - использование общественных работ на территории поселения | DF3: Бальная оценка (0;1) | DG3: Ai - объем фактически поступивших на конец отчетного периода доходов от использования имущества в i-том поселении | DH3: Бi - объем доходов от использования имущества, находящегося в собственности поселения в i-том поселении в соответсвии с кассовым планом на отчетный период | DI3: Расчет целевого значения индикатора | DJ3: Бальная оценка (0;1) | DK3: Аi – наличие муниципального правового акта о порядке проведения мониторинга и оценки качества организации и осуществления бюджетного процесса в городских и сельских поселениях района | DL3: Бальная оценка | DM3: Аi – наличие МПА, устанавливающего порядок определения объема и предоставления субсидий из местных бюджетов автономным учреждениям | DN3: Бальная оценка | DO3: Ai - наличие фактов нарушения сроков предоставлени бюджетной отчетности | DP3: Бальная оценка (0;-1) | DQ3: Ai - принятие в текущем году проекта на 3 года | DR3: Бальная оценка (0;1) | DS3: Ai - размещение ее результатов в официальных средствах массовой информации и или на сайте | DT3: Бальная оценка (0;1) | DU3: Аi – наличие МПА, устанавливающего порядок разработки, утверждения и реализации ведомственных целевых программ | DV3: Бальная оценка | DW3: Аi – наличие МПА, устанавливающего порядок проведения и критерии оценки эффективности реализации долгосрочных целевых программ | DX3: Бальная оценка | DY3: Аi – наличие МПА, содержащего порядок проведения публичных слушаний по проекту бюджета | DZ3: Бальная оценка | EA3: Аi – наличие МПА, устанавливающего порядок оценки инвестиционных проектов | EB3: Бальная оценка | EC3: Аi – Соответсвие положения о бюджетном процессе в поселении действующему бюджетному законадательству | ED3: Бальная оценка | EE3: Аi – наличие МПА, утверждающий программу эффективности бюджетных расходов поселения | EF3: Бальная оценка
A4: 1 Бурашевское с/п | B4: 0 | G4: =(B4)/(C4-D4-E4) ->  | H4: ≤0,05 | I4: =IF(G4<=0.05,1,0) ->  | J4: 0 | M4: 0 | N4: =J4/(K4-L4-M4) ->  | O4: ≤0,5 | P4: =IF(N4<=0.5,1,0) ->  | Q4: 0 | R4: 0 | S4: 0 | T4: ≤1,00 | U4: =IF(Q4>R4,0,1) -> 1 | V4: 812.5 | W4: 1026 | X4: =V4/W4 -> 0.7919103314 | Y4: ≤1,00 | Z4: =IF(X4<=1,1,0) -> 1 | AA4: 268.5 | AB4: 617.3 | AC4: =AA4/AB4 -> 0.4349586911 | AD4: ≤1,00 | AE4: =IF(AC4<=1,1,0) -> 1 | AF4: 0 | AH4: =AF4/AG4 ->  | AI4: ≤0,600 | AJ4: =IF(AH4<=0.6,1,0) ->  | AM4: 0 | AN4: ≤0 | AO4: =IF(AK4=0,1,0) -> 1 | AP4: 346.8 | AQ4: 525 | AR4: =AP4/AQ4 -> 0.6605714286 | AS4: =IF(AR4>=0.4,2,IF(AR4<0.2,-1,1)) -> 2 | AU4: 19 | AV4: =AT4/AU4 -> 0 | AW4: =IF(AV4>=0.1,2,IF(AV4<0.05,-1,1)) -> -1 | AX4: 110.7 | AY4: 290 | AZ4: =AX4/AY4 -> 0.3817241379 | BA4: =IF(AND(AZ4>=0.95,AZ4<=1.05),1,IF(OR(AND(AZ4>=0.85,AZ4<0.95),AND(AZ4>1.05,AZ4<=1.15)),0.5,0)) -> 0 | BC4: 247.8 | BD4: 277.2 | BF4: =BB4/((BC4+BD4+BE4)/3) -> 0 | BG4: =IF(AND(BF4>=0.7,BF4<=1.3),1,IF(OR(AND(BF4>=0.5,BF4<0.7),AND(BF4>1.5,BF4<0.5)),0.5,0)) -> 0 | BH4: 295 | BI4: 449.3 | BJ4: 275.7 | BK4: 431.1 | BL4: =(BH4/BI4)/(BJ4/BK4) -> 1.026660502 | BM4: =IF(BL4>=1,1,0) -> 1 | BR4: 0 | BS4: =IF(AND(BR4>=0.7,BR4<=1.3),1,IF(OR(AND(BR4>=0.5,BR4<0.7),AND(BR4>1.35,BR4<=1.5)),0.5,0)) -> 0 | BU4: 0 | BV4: 0 | BW4: =IF(BV4>0,-1,0) -> 0 | CB4: =(BX4/BY4)/(BZ4/CA4) ->  | CC4: =IF(CB4<=1,1,0) ->  | CD4: 0 | CF4: 0 | CH4: =(CD4/CE4)/(CF4/CG4) ->  | CI4: =IF(CG4<=1,1,0) -> 1 | CJ4: 112.977 | CK4: 106.964 | CL4: =CJ4/CK4 -> 1.056215175 | CM4: =IF(CL4<1,1,0) -> 0 | CO4: =IF(ISBLANK(CN4),0,-1) -> 0 | CP4: 1 | CQ4: 1 | CR4: 0 | CS4: 0 | CT4: 0 | CU4: =CP4+CQ4+CR4+CS4+CT4 -> 2 | CV4: =IF(CU4>=5,1,0) -> 0 | CW4: 11.2 | CX4: 24 | CY4: 0 | CZ4: =IF(AND(CY4>=0.98,CY4<=1.02),1,0) -> 0 | DA4: 0 | DB4: 0 | DC4: =DA4/DB4 ->  | DD4: =IF(AND(DC4>=0.98,DC4<=1.02),1,0) ->  | DE4: 0 | DF4: 0 | DG4: 4 | DH4: 4.7 | DI4: =DG4/DH4 -> 0.8510638298 | DJ4: =IF(AND(DI4>=0.98,DI4<=1.02),1,0) -> 0 | DL4: =IF(ISBLANK(DK4),0,1) -> 0 | DN4: =IF(ISBLANK(DM4),0,0.5) -> 0 | DP4: 0 | DV4: =IF(ISBLANK(DU4),0,0.5) -> 0 | DX4: =IF(ISBLANK(DW4),0,0.5) -> 0 | DZ4: =IF(ISBLANK(DY4),0,0.5) -> 0 | EB4: =IF(ISBLANK(EA4),0,0.5) -> 0 | ED4: =IF(ISBLANK(EC4),0,-1) -> 0 | EG4: =U4+Z4+AE4+AS4+BA4+BW4+CM4+CO4+CV4+CZ4+DD4+DF4+DJ4+ED4+BG4+BM4+BU4+CI4+DP4+DR4+DT4+EF4 -> 
A5: 2 Вихаревское с/п | B5: 0 | H5: ≤0,05 | I5: =IF(G5<=0.05,1,0) ->  | J5: 0 | M5: 0 | O5: ≤0,5 | P5: =IF(N5<=0.5,1,0) ->  | Q5: 0 | R5: 0 | S5: 0 | T5: ≤1,00 | U5: 1 | V5: 898.5 | W5: 1318 | X5: 0.6817147193 | Y5: ≤1,00 | Z5: 1 | AA5: 388.1 | AB5: 767.4 | AC5: 0.5057336461 | AD5: ≤1,00 | AE5: 1 | AF5: 0 | AH5: =AF5/AG5 ->  | AI5: ≤60,00 | AJ5: =IF(AH5<=0.6,1,0) ->  | AM5: 0 | AN5: ≤0 | AO5: 1 | AP5: 890.8 | AQ5: 1114 | AR5: 0.7996409336 | AS5: =IF(AR5>=0.4,2,IF(AR5<0.2,-1,1)) -> 2 | AU5: 44 | AV5: 0 | AW5: -1 | AX5: 247.7 | AY5: 665.7 | AZ5: =AX5/AY5 -> 0.3720895298 | BA5: 0 | BC5: 503.1 | BD5: 610.9 | BF5: 0 | BG5: 0 | BH5: 665.7 | BI5: 698.9 | BJ5: 604 | BK5: 838.2 | BL5: 1.32182583 | BM5: 1 | BR5: 0 | BS5: 0 | BU5: 0 | BV5: 0 | BW5: 0 | CD5: 0 | CF5: 0 | CH5: =(CD5/CE5)/(CF5/CG5) ->  | CI5: 1 | CJ5: 75.877 | CK5: 70.866 | CL5: =CJ5/CK5 -> 1.070710919 | CM5: =IF(CL5<1,1,0) -> 0 | CO5: 0 | CP5: 0 | CQ5: 2 | CR5: 2 | CS5: 0 | CT5: 0 | CU5: 4 | CV5: 0 | CW5: 16.3 | CX5: 29 | CY5: 0 | CZ5: =IF(AND(CY5>=0.98,CY5<=1.02),1,0) -> 0 | DA5: 0 | DB5: 0 | DC5: =DA5/DB5 ->  | DD5: =IF(AND(DC5>=0.98,DC5<=1.02),1,0) ->  | DE5: 0 | DF5: 0 | DG5: 0 | DH5: 0 | DL5: 0 | DN5: 0 | DP5: 0 | DV5: 0 | DX5: 0 | DZ5: 0 | EB5: 0 | ED5: =IF(ISBLANK(EC5),0,-1) -> 0 | EG5: =U5+Z5+AE5+AS5+BA5+BW5+CM5+CO5+CV5+CZ5+DD5+DF5+DJ5+ED5+BG5+BM5+BU5+CI5+DP5+DR5+DT5+EF5 -> 
A6: 3 Дамаскинское с/п | B6: 0 | H6: ≤0,05 | J6: 0 | M6: 0 | O6: ≤0,5 | P6: =IF(N6<=0.5,1,0) ->  | Q6: 0 | R6: 0 | S6: 0 | T6: ≤1,00 | U6: 1 | V6: 996.3 | W6: 1168 | X6: 0.8529965753 | Y6: ≤1,00 | Z6: 1 | AA6: 355.3 | AB6: 733.9 | AC6: 0.4841259027 | AD6: ≤1,00 | AE6: 1 | AF6: 0 | AI6: ≤60,00 | AM6: 0 | AN6: ≤0 | AO6: 1 | AP6: 450.1 | AQ6: 629.1 | AR6: 0.7154665395 | AS6: 2 | AU6: 37 | AV6: 0 | AW6: -1 | AX6: 202 | AY6: 509 | AZ6: =AX6/AY6 -> 0.3968565815 | BA6: =IF(AND(AZ6>=0.95,AZ6<=1.05),1,IF(OR(AND(AZ6>=0.85,AZ6<0.95),AND(AZ6>1.05,AZ6<=1.15)),0.5,0)) -> 0 | BC6: 329.6 | BD6: 299.5 | BF6: 0 | BG6: 0 | BH6: 509 | BI6: 474.7 | BJ6: 367.9 | BK6: 330.3 | BL6: 0.962669775 | BM6: 0 | BR6: 0 | BS6: 0 | BU6: 0 | BV6: 0 | BW6: 0 | CD6: 0 | CF6: 0 | CH6: =(CD6/CE6)/(CF6/CG6) ->  | CI6: 1 | CJ6: 92.49 | CK6: 97.089 | CL6: 0.9526310911 | CM6: 1 | CO6: 0 | CP6: 2 | CQ6: 2 | CR6: 2 | CS6: 0 | CT6: 0 | CU6: 6 | CV6: 1 | CW6: 5 | CX6: 0 | CY6: 0 | CZ6: 0 | DA6: 0 | DB6: 0 | DC6: 0 | DD6: =IF(AND(DC6>=0.98,DC6<=1.02),1,0) -> 0 | DE6: 0 | DF6: 1 | DG6: 4 | DH6: 6.8 | DI6: =DG6/DH6 -> 0.5882352941 | DJ6: =IF(AND(DI6>=0.98,DI6<=1.02),1,0) -> 0 | DL6: 0 | DN6: 0 | DP6: 0 | DV6: 0 | DX6: 0 | DZ6: =IF(ISBLANK(DY6),0,0.5) -> 0 | EA6: от 02.02.10 №52 | EB6: 0.5 | ED6: 0 | EG6: 9
A7: 4 Зимнякское с/п | B7: 0 | H7: ≤0,05 | J7: 0 | M7: 0 | O7: ≤0,5 | P7: =IF(N7<=0.5,1,0) ->  | Q7: 0 | R7: 0 | S7: 0 | T7: ≤1,00 | U7: 1 | V7: 870 | W7: 1018 | X7: 0.8546168959 | Y7: ≤1,00 | Z7: 1 | AA7: 316.6 | AB7: 634.8 | AC7: 0.4987397606 | AD7: ≤1,00 | AE7: 1 | AF7: 0 | AI7: ≤0,600 | AM7: 0 | AN7: ≤0 | AO7: 1 | AP7: 416.3 | AQ7: 563.6 | AR7: =AP7/AQ7 -> 0.7386444287 | AS7: 2 | AU7: 17 | AV7: 0 | AW7: -1 | AX7: 265.1 | AY7: 361.6 | AZ7: =AX7/AY7 -> 0.733130531 | BA7: 0 | BC7: 289.6 | BD7: 274 | BF7: 0 | BG7: 0 | BH7: 447.4 | BI7: 425.9 | BJ7: 313.2 | BK7: 379 | BL7: 1.271176326 | BM7: 1 | BR7: 0 | BS7: 0 | BU7: 0 | BV7: 0 | BW7: 0 | CD7: 0 | CF7: 0 | CI7: 1 | CJ7: 22.292 | CK7: 17.509 | CL7: 1.273173796 | CM7: 0 | CO7: 0 | CP7: 1 | CQ7: 1 | CR7: 1 | CS7: 0 | CT7: 0 | CU7: =CP7+CQ7+CR7+CS7+CT7 -> 3 | CV7: =IF(CU7>=5,1,0) -> 0 | CW7: 18.5 | CX7: 0 | CY7: 0 | CZ7: 0 | DA7: 42 | DB7: 42 | DC7: =DA7/DB7 -> 1 | DD7: =IF(AND(DC7>=0.98,DC7<=1.02),1,0) -> 1 | DE7: 0 | DF7: 0 | DG7: 0.5 | DH7: 0 | DI7: =DG7/DH7 ->  | DJ7: =IF(AND(DI7>=0.98,DI7<=1.02),1,0) ->  | DL7: 0 | DN7: 0 | DP7: 0 | DV7: 0 | DX7: 0 | DZ7: =IF(ISBLANK(DY7),0,0.5) -> 0 | EB7: 0 | ED7: 0
A8: 5 М-Кильмезское с/п | B8: 0 | H8: ≤0,05 | J8: 0 | M8: 0 | O8: ≤0,05 | P8: =IF(N8<=1,1,0) ->  | Q8: 0 | R8: 0 | S8: 0 | T8: ≤1,00 | U8: 1 | V8: 1142.4 | W8: 1311 | X8: 0.871395881 | Y8: ≤1,00 | Z8: 1 | AA8: 370.1 | AB8: 799.5 | AC8: 0.4629143215 | AD8: ≤1,00 | AE8: 1 | AF8: 0 | AI8: ≤0,600 | AM8: 0 | AN8: ≤0 | AO8: 1 | AP8: 586.5 | AQ8: 774.1 | AR8: 0.7576540499 | AS8: 2 | AU8: 58 | AV8: 0 | AW8: -1 | AX8: 381.2 | AY8: 840.3 | AZ8: =AX8/AY8 -> 0.4536475068 | BA8: 0 | BC8: 400.6 | BD8: 373.5 | BF8: 0 | BG8: 0 | BH8: 840.3 | BI8: 666 | BJ8: 708.2 | BK8: 911.2 | BL8: 1.623371522 | BM8: 1 | BR8: 0 | BS8: 0 | BU8: 0 | BV8: 0 | BW8: 0 | CD8: 0 | CF8: 0 | CI8: 1 | CJ8: 314.115 | CK8: 366.579 | CL8: 0.8568821455 | CM8: 1 | CO8: 0 | CP8: 1 | CQ8: 1 | CR8: 1 | CS8: 1 | CT8: 1 | CU8: 5 | CV8: 1 | CW8: 22.9 | CX8: 20 | CY8: =CW8/CX8 -> 1.145 | CZ8: 0 | DA8: 1.8 | DB8: 0 | DC8: 0 | DD8: 0 | DE8: 0 | DF8: 1 | DG8: 0 | DH8: 0 | DL8: 0 | DN8: 0 | DP8: 0 | DV8: 0 | DX8: 0 | DZ8: 0 | EB8: 0 | ED8: 0
A9: 6 Моторское с/п | B9: 0 | H9: ≤0,05 | J9: 0 | M9: 0 | O9: ≤0,5 | P9: =IF(N9<=0.5,1,0) ->  | Q9: 0 | R9: 0 | S9: 0 | T9: ≤1,00 | U9: 1 | V9: 1032.7 | W9: 1321 | X9: 0.7817562453 | Y9: ≤1,00 | Z9: 1 | AA9: 354.1 | AB9: 767.4 | AC9: 0.4614281991 | AD9: ≤1,00 | AE9: 1 | AF9: 0 | AI9: ≤0,600 | AM9: 0 | AN9: ≤0 | AO9: 1 | AP9: 869.3 | AQ9: 1035.9 | AR9: =AP9/AQ9 -> 0.8391736654 | AS9: 2 | AU9: 28 | AV9: 0 | AW9: -1 | AX9: 408.3 | AY9: 807.8 | AZ9: =AX8/AY8 -> 0.4536475068 | BA9: 0 | BC9: 521.1 | BD9: 514.8 | BF9: 0 | BG9: 0 | BH9: 822.8 | BI9: 806.4 | BJ9: 621.4 | BK9: 901.6 | BL9: 1.480425026 | BM9: 1 | BR9: 0 | BS9: 0 | BU9: 0 | BV9: 0 | BW9: 0 | CD9: 0 | CF9: 0 | CI9: 1 | CJ9: 64.764 | CK9: 88.598 | CL9: 0.7309871555 | CM9: 1 | CO9: 0 | CP9: 0 | CQ9: 1 | CR9: 1 | CS9: 0 | CT9: 0 | CU9: 2 | CV9: 0 | CW9: 106.2 | CX9: 70 | CY9: 0 | CZ9: 0 | DA9: 0 | DB9: 0 | DD9: =IF(AND(DC9>=0.98,DC9<=1.02),1,0) ->  | DE9: 0 | DF9: 0 | DG9: 43 | DH9: 25.8 | DI9: =DG9/DH9 -> 1.666666667 | DJ9: 0 | DL9: 0 | DM9: от 27.03.06 №10 | DN9: 0.5 | DP9: 0 | DV9: 0 | DX9: 0 | DZ9: 0 | EB9: 0 | ED9: 0
A10: 7 Паскинское с/п | B10: 0 | H10: ≤0,05 | J10: 0 | M10: 0 | O10: ≤0,5 | P10: =IF(N10<=0.5,1,0) ->  | Q10: 0 | R10: 0 | S10: 0 | T10: ≤1,00 | U10: 1 | V10: 907.5 | W10: 1026 | X10: 0.884502924 | Y10: ≤1,00 | Z10: 1 | AA10: 297.1 | AB10: 651.2 | AC10: 0.4562346437 | AD10: ≤1,00 | AE10: 1 | AF10: 0 | AI10: ≤0,600 | AM10: 0 | AN10: ≤0 | AO10: 1 | AP10: 431.9 | AQ10: 594.2 | AR10: 0.7268596432 | AS10: 2 | AU10: 70 | AV10: 0 | AW10: -1 | AX10: 163.8 | AY10: 411.4 | AZ10: =AX9/AY9 -> 0.5054468928 | BA10: 0 | BC10: 320.4 | BD10: 273.8 | BF10: 0 | BG10: 0 | BH10: 411.4 | BI10: 430.1 | BJ10: 307.6 | BK10: 389.3 | BL10: 1.210578391 | BM10: 1 | BR10: 0 | BS10: 0 | BU10: 0 | BV10: 0 | BW10: 0 | CD10: 0 | CF10: 0 | CI10: 1 | CJ10: 126.804 | CK10: 104.208 | CL10: 1.21683556 | CM10: 0 | CO10: 0 | CP10: 0 | CQ10: 2 | CR10: 2 | CS10: 0 | CT10: 0 | CU10: 4 | CV10: 0 | CW10: 8.9 | CX10: 0.4 | CY10: =CW10/CX10 -> 22.25 | CZ10: 0 | DA10: 10.3 | DB10: 37.1 | DC10: 0.2776280323 | DD10: 0 | DE10: 2 | DF10: 0 | DG10: 0.3 | DH10: 0.2 | DI10: 1.5 | DJ10: 0 | DL10: 0 | DN10: 0 | DP10: 0 | DV10: 0 | DX10: 0 | DZ10: 0 | EB10: 0 | ED10: 0 | EG10: 7
A11: 8 Б-Порекское с/п | B11: 0 | H11: ≤0,05 | J11: 0 | M11: 0 | O11: ≤0,05 | P11: =IF(N11<=1,1,0) ->  | Q11: 0 | R11: 0 | S11: 0 | T11: ≤1,00 | U11: 1 | V11: 1037.2 | W11: 1395 | X11: 0.7435125448 | Y11: ≤1,00 | Z11: 1 | AA11: 351 | AB11: 717.8 | AC11: 0.4889941488 | AD11: ≤1,00 | AE11: 1 | AF11: 0 | AI11: ≤0,600 | AM11: 0 | AN11: ≤0 | AO11: 1 | AP11: 841.1 | AQ11: 1213.8 | AR11: 0.6929477673 | AS11: 2 | AU11: 24 | AV11: 0 | AW11: -1 | AX11: 428.7 | AY11: 723.6 | AZ11: =AX11/AY11 -> 0.5924543947 | BA11: 0 | BC11: 629.4 | BD11: 584.4 | BF11: 0 | BG11: 0 | BH11: 723.6 | BI11: 967.4 | BJ11: 686.2 | BK11: 758.2 | BL11: 0.826467046 | BM11: 0 | BR11: 0 | BS11: 0 | BU11: 0 | BV11: 0 | BW11: 0 | CD11: 0 | CF11: 0 | CI11: 1 | CJ11: 299.758 | CK11: 208.825 | CL11: 1.435450736 | CM11: 0 | CO11: 0 | CP11: 1 | CQ11: 1 | CR11: 1 | CS11: 1 | CT11: 1 | CU11: 5 | CV11: 1 | CW11: 19.1 | CX11: 18.2 | CY11: 0 | CZ11: 0 | DA11: 14.8 | DB11: 0 | DE11: 0 | DF11: 0 | DG11: 6.6 | DH11: 8.6 | DI11: 0.7674418605 | DJ11: 0 | DL11: 0 | DN11: 0 | DP11: 0 | DV11: 0 | DX11: 0 | DZ11: 0 | EB11: 0 | ED11: 0
A12: 9 Р-Ватажское с/п | B12: 0 | H12: ≤0,05 | J12: 0 | M12: 0 | O12: ≤0,05 | P12: =IF(N12<=1,1,0) ->  | Q12: 0 | R12: 0 | S12: 0 | T12: ≤1,00 | U12: 1 | V12: 975.6 | W12: 1456 | X12: 0.6700549451 | Y12: ≤1,00 | Z12: 1 | AA12: 427.7 | AB12: 859.6 | AC12: 0.4975570033 | AD12: ≤1,00 | AE12: 1 | AF12: 0 | AI12: ≤0,600 | AM12: 0 | AN12: ≤0 | AO12: 1 | AP12: 1066.9 | AQ12: 1261.1 | AR12: 0.8460074538 | AS12: 2 | AU12: 56 | AV12: 0 | AW12: -1 | AX12: 409.1 | AY12: 885.4 | AZ12: =AX12/AY12 -> 0.4620510504 | BA12: 0 | BC12: 627.9 | BD12: 633.2 | BF12: 0 | BG12: 0 | BH12: 885.4 | BI12: 835.2 | BJ12: 587 | BK12: 750.7 | BL12: 1.355742925 | BM12: 1 | BR12: 0 | BS12: 0 | BU12: 0 | BV12: 0 | BW12: 0 | CD12: 0 | CF12: 0 | CI12: 1 | CJ12: 407.105 | CK12: 178.774 | CL12: 2.277204739 | CM12: 0 | CO12: 0 | CP12: 1 | CQ12: 1 | CR12: 1 | CS12: 2 | CT12: 2 | CU12: 7 | CV12: 1 | CW12: 50.1 | CX12: 29.1 | CY12: =CW12/CX12 -> 1.721649485 | CZ12: 0 | DA12: 0 | DB12: 0 | DC12: =DA12/DB12 ->  | DE12: 0 | DF12: 0 | DG12: 7.4 | DH12: 8 | DI12: =DG12/DH12 -> 0.925 | DJ12: =IF(AND(DI12>=0.98,DI12<=1.02),1,0) -> 0 | DL12: 0 | DN12: 0 | DP12: 0 | DV12: 0 | DX12: 0 | DZ12: =IF(ISBLANK(DY12),0,0.5) -> 0 | EA12: 15.01.10 №6 | EB12: 0.5 | ED12: 0
A13: 10 Селинское с/п | B13: 0 | H13: ≤0,05 | J13: 0 | M13: 0 | O13: ≤0,5 | P13: =IF(N13<=0.5,1,0) ->  | Q13: 0 | R13: 0 | S13: 0 | T13: ≤1,00 | U13: =IF(Q13>R13,0,1) -> 1 | V13: 778.9 | W13: 1018 | X13: 0.7651277014 | Y13: ≤1,00 | Z13: 1 | AA13: 304 | AB13: 626.2 | AC13: 0.4854679016 | AD13: ≤1,00 | AE13: 1 | AF13: 0 | AI13: ≤0,600 | AM13: 0 | AN13: ≤0 | AO13: 1 | AP13: 687.3 | AQ13: 860.2 | AR13: 0.7990002325 | AS13: 2 | AU13: 44 | AV13: 0 | AW13: -1 | AX13: 233.1 | AY13: 519.6 | AZ13: =AX13/AY13 -> 0.4486143187 | BA13: 0 | BC13: 343.5 | BD13: 516.7 | BF13: 0 | BG13: 0 | BH13: 519.6 | BI13: 766.8 | BJ13: 361.3 | BK13: 362.4 | BL13: 0.6796843428 | BM13: 0 | BR13: 0 | BS13: 0 | BU13: 0 | BV13: 0 | BW13: 0 | CD13: 0 | CF13: 0 | CI13: 1 | CJ13: 38.99 | CK13: 46.997 | CL13: 0.829627423 | CM13: 1 | CO13: 0 | CP13: 0 | CQ13: 0 | CR13: 2 | CS13: 4 | CT13: 4 | CU13: =CP13+CQ13+CR13+CS13+CT13 -> 10 | CV13: 1 | CW13: 15.5 | CX13: 0 | CY13: 0 | CZ13: 0 | DA13: 0 | DB13: 0 | DC13: =DA13/DB13 ->  | DD13: =IF(AND(DC13>=0.98,DC13<=1.02),1,0) ->  | DE13: 0 | DF13: 0 | DG13: 18.2 | DH13: 29.8 | DI13: =DG13/DH13 -> 0.610738255 | DJ13: =IF(AND(DI13>=0.98,DI13<=1.02),1,0) -> 0 | DL13: 0 | DN13: 0 | DP13: 0 | DV13: 0 | DX13: 0 | DZ13: 0 | EB13: 0 | ED13: 0
A14: 11Чернушское с/п | B14: 0 | H14: ≤0,05 | J14: 0 | M14: 0 | O14: ≤0,5 | P14: =IF(N14<=0.5,1,0) ->  | Q14: 0 | R14: 0 | S14: 0 | T14: ≤1,00 | U14: 1 | V14: 1030.5 | W14: 1170 | X14: 0.8807692308 | Y14: ≤1,00 | Z14: 1 | AA14: 362.3 | AB14: 729.9 | AC14: 0.4963693657 | AD14: ≤1,00 | AE14: 1 | AF14: 0 | AI14: ≤0,600 | AM14: 0 | AN14: ≤0 | AO14: 1 | AP14: 419.5 | AQ14: 618.1 | AR14: 0.6786927682 | AS14: 2 | AU14: 52 | AV14: 0 | AW14: -1 | AX14: 197.9 | AY14: 419.2 | AZ14: =AX14/AY14 -> 0.4720896947 | BA14: 0 | BC14: 278.8 | BD14: 339.3 | BF14: 0 | BG14: 0 | BH14: 395.6 | BI14: 574.3 | BJ14: 396.3 | BK14: 455 | BL14: 0.790869434 | BM14: 0 | BR14: 0 | BS14: 0 | BU14: 0 | BV14: 0 | BW14: 0 | CD14: 0 | CF14: 0 | CI14: 1 | CJ14: 32.718 | CK14: 57.546 | CL14: 0.5685538526 | CM14: 1 | CO14: 0 | CP14: 1 | CQ14: 1 | CR14: 1 | CS14: 1 | CT14: 1 | CU14: =CP14+CQ14+CR14+CS14+CT14 -> 5 | CV14: 1 | CW14: 2.1 | CX14: 0 | CY14: 0 | CZ14: 0 | DA14: 0 | DB14: 0 | DE14: 0 | DF14: 1 | DG14: 10.1 | DH14: 15.9 | DI14: =DG14/DH14 -> 0.6352201258 | DJ14: =IF(AND(DI14>=0.98,DI14<=1.02),1,0) -> 0 | DL14: 0 | DM14: от 09.03.10 №31 | DN14: 0.5 | DP14: 0 | DV14: 0 | DX14: 0 | DZ14: 0 | EA14: 10.03.10 №32а | EB14: 0.5 | ED14: 0
A15: 12 гор. пос. пгт Кильмезь | B15: 0 | H15: ≤0,10 | I15: =IF(G15<=0.1,1,0) ->  | J15: 0 | M15: 0 | O15: ≤1,00 | P15: =IF(N15<=1,1,0) ->  | Q15: 0 | R15: 0 | S15: 0 | T15: ≤1,00 | U15: 1 | V15: 2683.7 | W15: 0 | Y15: ≤1,00 | AA15: 933.2 | AB15: 1765.4 | AC15: 0.5286054152 | AD15: ≤1,00 | AE15: 1 | AF15: 0 | AI15: ≤0,600 | AM15: 0 | AN15: ≤0 | AO15: 1 | AP15: 3686.9 | AQ15: 3501.2 | AR15: =AP15/AQ15 -> 1.053038958 | AS15: 2 | AU15: 43 | AV15: 0 | AW15: -1 | AX15: 3252.1 | AY15: 9266.6 | AZ15: =AX15/AY15 -> 0.350948568 | BA15: 0 | BC15: 1596.3 | BD15: 1904.9 | BF15: 0 | BG15: 0 | BH15: 9666.6 | BI15: 0 | BJ15: 9175.4 | BK15: 0 | BL15: 0 | BM15: 1 | BR15: 0 | BS15: 0 | BU15: 0 | BV15: 0 | BW15: 0 | CD15: 0 | CF15: 0 | CI15: 1 | CJ15: 5204.897 | CK15: 3751.648 | CL15: 1.387362834 | CM15: 0 | CO15: 0 | CP15: 1 | CQ15: 1 | CR15: 1 | CS15: 1 | CT15: 1 | CU15: 5 | CV15: 1 | CW15: 361 | CX15: 490 | CY15: =CW15/CX15 -> 0.7367346939 | CZ15: 0 | DA15: 0 | DB15: 0 | DC15: 0 | DD15: 0 | DE15: 18 | DF15: 1 | DG15: 298.7 | DH15: 472.1 | DI15: 0.6327049354 | DJ15: 0 | DL15: 0 | DM15: 14.01.09 №5 | DN15: 0.5 | DP15: 0 | DV15: 0 | DX15: 0 | DZ15: 0 | EB15: 0 | ED15: 0
A16: 13 Котельнический | C16: 52808.8 | D16: 47075.8 | G16: =(B16)/(C16-D16-E16) -> 0 | H16: ≤0,05 | I16: =IF(G16<=0.05,1,0) -> 1 | J16: 3089.13 | K16: 238254 | L16: 212460.3 | N16: =J16/(K16-L16-M16) -> 0.1197629654 | O16: ≤0,5 | P16: =IF(N16<=0.5,1,0) -> 1 | Q16: 3089.13 | R16: 10000 | S16: =Q16/R16 -> 0.308913 | T16: ≤1,00 | U16: =IF(Q16>R16,0,1) -> 1 | V16: 14946.9 | W16: 16709 | X16: =V16/W16 -> 0.8945418637 | Y16: ≤1,00 | Z16: =IF(X16<=1,1,0) -> 1 | AA16: 2136.4 | AB16: 8064.4 | AC16: =AA16/AB16 -> 0.2649174148 | AD16: ≤1,00 | AE16: =IF(AC16<=1,1,0) -> 1 | AM16: 0 | AN16: ≤0 | AO16: =IF(AK16=0,1,0) -> 1 | AP16: 233 | AQ16: 13889.8 | AR16: =AP16/AQ16 -> 0.01677489957 | AS16: =IF(AR16>=0.6,5,IF(AR16<0.3,-1,2)) -> -1 | AU16: 44 | AV16: =AT16/AU16 -> 0 | AW16: =IF(AV16>=0.1,2,IF(AV16<0.05,-1,1)) -> -1 | AX16: 25793.7 | AY16: 25793.7 | AZ16: =AX16/AY16 -> 1 | BA16: =IF(AND(AZ16>=0.95,AZ16<=1.05),1,IF(OR(AND(AZ16>=0.85,AZ16<0.95),AND(AZ16>1.05,AZ16<=1.15)),0.5,0)) -> 1 | BH16: 25793.7 | BI16: 87584 | BJ16: 30030.1 | BK16: 81815 | BL16: =(BH16/BI16)/(BJ16/BK16) -> 0.8023521579 | BM16: =IF(BL16>=1,1,0) -> 0 | BR16: 0 | BS16: =IF(AND(BR16>=0.7,BR16<=1.3),1,IF(OR(AND(BR16>=0.5,BR16<0.7),AND(BR16>1.35,BR16<=1.5)),0.5,0)) -> 0 | BW16: =IF(BV16>0,-1,0) -> 0 | CB16: =(BX16/BY16)/(BZ16/CA16) ->  | CC16: =IF(CB16<=1,1,0) ->  | CJ16: 3089.13 | CK16: 5732.9 | CL16: =(CJ16/CK16)/(#REF!/#REF!) ->  | CO16: =IF(ISBLANK(CN16),0,-1) -> 0 | CQ16: 1 | CR16: 1 | CU16: =CP16+CQ16+CR16+CS16+CT16 -> 2 | CV16: =IF(CU16>=5,1,0) -> 0 | DJ16: =IF(AND(DI16>=0.98,DI16<=1.02),1,0) -> 0 | DL16: =IF(ISBLANK(DK16),0,1) -> 0 | DN16: =IF(ISBLANK(DM16),0,0.5) -> 0 | DV16: =IF(ISBLANK(DU16),0,0.5) -> 0 | DW16: 19.11.09 №273 | DX16: =IF(ISBLANK(DW16),0,0.5) -> 0.5 | DY16: 14.12.05 №398 | DZ16: =IF(ISBLANK(DY16),0,0.5) -> 0.5 | EB16: =IF(ISBLANK(EA16),0,0.5) -> 0 | ED16: =IF(ISBLANK(EC16),0,0.5) -> 0 | EG16: =I16+P16+U16+Z16+AE16+AS16+BA16+BW16+CM16+CO16+CV16+CZ16+DD16+DF16+DJ16+DV16+DX16+DZ16+ED16 -> 
A17: 14 Куменский | C17: 56945.9 | D17: 43953.1 | G17: 0 | H17: ≤0,05 | I17: =IF(G17<=0.05,1,0) -> 1 | J17: 5746.62 | K17: 275005.5 | L17: 216813.4 | N17: 0.09875257982 | O17: ≤0,5 | P17: =IF(N17<=0.5,1,0) -> 1 | Q17: 5746.62 | R17: 29096 | S17: =Q17/R17 -> 0.197505499 | T17: ≤1,00 | U17: 1 | V17: 15332.6 | W17: 16032 | X17: 0.9563747505 | Y17: ≤1,00 | Z17: 1 | AA17: 1822.7 | AB17: 8368.9 | AC17: 0.2177944533 | AD17: ≤1,00 | AE17: 1 | AM17: 0 | AN17: ≤0 | AO17: 1 | AP17: 269.5 | AQ17: 32606.4 | AR17: 0.00826524854 | AS17: -1 | AU17: 41 | AV17: 0 | AW17: -1 | AX17: 58192.1 | AY17: 58201.5 | AZ17: 0.9998384921 | BA17: 1 | BH17: 58192.1 | BI17: 62621 | BJ17: 54105.7 | BK17: 55876 | BL17: 0.9596797257 | BM17: 0 | BR17: 0 | BS17: 0 | BV17: 1379.2 | BW17: -1 | CJ17: 5746.62 | CK17: 12992.8 | CL17: =(CJ17/CK17)/(#REF!/#REF!) ->  | CO17: 0 | CQ17: 1 | CU17: 1 | CV17: 0 | DJ17: 0 | DK17: от 05.04.10 №298 | DL17: 1 | DN17: 0 | DU17: от 29.10.09 №82 | DV17: 0.5 | DW17: от 06.10.09 №70 | DX17: 0.5 | DY17: от 19.10.05 №29/218 | DZ17: 0.5 | EB17: 0 | ED17: 0
A18: 15 Лебяжский | C18: 26259.2 | D18: 22162.5 | G18: 0 | H18: ≤0,05 | I18: =IF(G18<=0.05,1,0) -> 1 | K18: 126792.1 | L18: 110378.7 | N18: 0 | O18: ≤0,5 | P18: =IF(N18<=0.5,1,0) -> 1 | R18: 0 | S18: 0 | T18: ≤1,00 | U18: 1 | V18: 11607.6 | W18: 13672 | X18: 0.8490052662 | Y18: ≤1,00 | Z18: 1 | AA18: 1526.1 | AB18: 6356.8 | AC18: 0.2400736219 | AD18: ≤1,00 | AE18: 1 | AM18: 0 | AN18: ≤0 | AO18: 1 | AP18: 105.8 | AQ18: 2450.4 | AR18: 0.04317662422 | AS18: -1 | AU18: 38 | AV18: 0 | AW18: -1 | AX18: 16413.4 | AY18: 16413.4 | AZ18: 1 | BA18: 1 | BH18: 16413.4 | BI18: 42384 | BJ18: 14414.9 | BK18: 39878 | BL18: 1.071317866 | BM18: 1 | BR18: 0 | BS18: 0 | BW18: 0 | CK18: 4096.7 | CL18: 0 | CM18: 1 | CO18: 0 | CP18: 1 | CQ18: 1 | CU18: 2 | CV18: 0 | DJ18: 0 | DL18: 0 | DN18: 0 | DU18: 05.12.08 №237 | DV18: 0.5 | DW18: 17.10.08 №219 | DX18: 0.5 | DY18: 16.09.05 №345 | DZ18: 0.5 | EB18: 0 | ED18: 0 | EG18: 7.5
A19: 16 Лузский | B19: 400.4 | C19: 46954.9 | D19: 34743.9 | G19: 0.03279010728 | H19: ≤0,10 | I19: =IF(G19<=0.1,1,0) -> 1 | J19: 2100 | K19: 208485.9 | L19: 155158 | N19: 0.03937901174 | O19: ≤1,00 | P19: =IF(N19<=1,1,0) -> 1 | Q19: 2100 | R19: 7000 | S19: =Q19/R19 -> 0.3 | T19: ≤1,00 | U19: 1 | V19: 16373 | W19: 17115 | X19: 0.9566462168 | Y19: ≤1,00 | Z19: 1 | AA19: 1912 | AB19: 9199.9 | AC19: 0.207828346 | AD19: ≤1,00 | AE19: 1 | AM19: 0 | AN19: ≤0 | AO19: 1 | AP19: 54.3 | AQ19: 23502 | AR19: 0.002310441665 | AS19: -1 | AU19: 44 | AV19: 0 | AW19: -1 | AX19: 53327.9 | AY19: 54132.9 | AZ19: 0.9851291913 | BA19: 1 | BH19: 53327.9 | BI19: 75182 | BJ19: 52156.9 | BK19: 53944 | BL19: 0.7336213862 | BM19: 0 | BR19: 0 | BS19: 0 | BW19: 0 | CJ19: 2100 | CK19: 12211 | CL19: более 1 | CM19: 0 | CN19: 1 | CO19: -1 | CP19: 1 | CQ19: 1 | CR19: 1 | CU19: 3 | CV19: 0 | DJ19: 0 | DK19: 12.04.10 №340 | DL19: 1 | DM19: 13.04.10 №353 | DN19: 0.5 | DU19: 18.05.09 № 47 | DV19: 0.5 | DW19: 18.05.09 №46 | DX19: 0.5 | DY19: 11.03.10 №213 | DZ19: 0.5 | EA19: 16.04.10 № 371 | EB19: 0.5 | ED19: 0 | EG19: 5.5
A20: 17 Малмыжский | C20: 70842 | D20: 57668.1 | G20: 0 | H20: ≤0,05 | I20: =IF(G20<=0.05,1,0) -> 1 | K20: 336531.6 | L20: 283748 | N20: 0 | O20: ≤0,5 | P20: =IF(N20<=0.5,1,0) -> 1 | R20: 1128 | S20: 0 | T20: ≤1,00 | U20: 1 | V20: 13215.6 | W20: 16755 | X20: 0.7887555953 | Y20: ≤1,00 | Z20: 1 | AA20: 1780.4 | AB20: 7927 | AC20: 0.2245994702 | AD20: ≤1,00 | AE20: 1 | AM20: 0 | AN20: ≤0 | AO20: 1 | AP20: 10 | AQ20: 33966.3 | AR20: 0.0002944094588 | AS20: -1 | AU20: 108 | AV20: 0 | AW20: -1 | AX20: 52783.6 | AY20: 52521.6 | AZ20: 1.004988424 | BA20: 1 | BH20: 52783.6 | BI20: 62023 | BJ20: 50374.1 | BK20: 53838 | BL20: 0.9095526769 | BM20: 0 | BR20: 0 | BS20: 0 | BW20: 0 | CK20: 13173.9 | CL20: 0 | CM20: 1 | CO20: 0 | CP20: 1 | CQ20: 1 | CR20: 1 | CS20: 1 | CT20: 1 | CU20: 5 | CV20: 1 | DJ20: 0 | DK20: 14.04.10 №216 | DL20: 1 | DN20: 0 | DU20: 21.12.09 №435 | DV20: 0.5 | DW20: 21.12.09 №435 | DX20: 0.5 | DY20: 24.11.05 №6 | DZ20: 0.5 | EB20: 0 | ED20: 0 | EG20: 8.5
A21: 18 Мурашинский | C21: 33163.4 | D21: 22328.9 | G21: 0 | H21: ≤0,10 | I21: =IF(G21<=0.1,1,0) -> 1 | J21: 1077 | K21: 149443.6 | L21: 103415.5 | N21: 0.02339874989 | O21: ≤1,00 | P21: =IF(N21<=1,1,0) -> 1 | Q21: 1077 | R21: 3000 | S21: 0.359 | T21: ≤1,00 | U21: 1 | V21: 11860 | W21: 15663 | X21: 0.7571984933 | Y21: ≤1,00 | Z21: 1 | AA21: 1820.8 | AB21: 8278.4 | AC21: 0.2199458833 | AD21: ≤1,00 | AE21: 1 | AM21: 0 | AN21: ≤0 | AO21: 1 | AP21: 13.1 | AQ21: 16448.4 | AR21: 0.0007964300479 | AS21: -1 | AU21: 22 | AV21: 0 | AW21: -1 | AX21: 46028.1 | AY21: 46028.07 | AZ21: 1.000000652 | BA21: 1 | BH21: 46028.1 | BI21: 34470 | BJ21: 46628.3 | BK21: 25028 | BL21: 0.7167345316 | BM21: 0 | BR21: 0 | BS21: 0 | BW21: 0 | CJ21: 1077 | CK21: 10834.4 | CL21: =(CJ21/CK21)/(#REF!/#REF!) ->  | CO21: 0 | CP21: 1 | CQ21: 1 | CS21: 1 | CT21: 1 | CU21: 4 | CV21: 0 | DJ21: 0 | DL21: 0 | DM21: 15.04.10. №349 | DN21: 0.5 | DU21: 14.04.10 № 335 | DV21: 0.5 | DW21: 24.07.08 №42 | DX21: 0.5 | DY21: 10.08.05 №34 | DZ21: 0.5 | EB21: 0 | ED21: 0
A22: 19 Нагорский | C22: 33999.6 | D22: 27199.1 | G22: 0 | H22: ≤0,10 | I22: =IF(G22<=0.1,1,0) -> 1 | J22: 2757.1 | K22: 176131.6 | L22: 151238.2 | N22: 0.1107562647 | O22: ≤1,00 | P22: =IF(N22<=1,1,0) -> 1 | Q22: 2757.1 | R22: 2800.1 | S22: 0.9846434056 | T22: ≤1,00 | U22: 1 | V22: 14379.3 | W22: 16466 | X22: 0.8732721973 | Y22: ≤1,00 | Z22: 1 | AA22: 1894.7 | AB22: 8959.7 | AC22: 0.211469134 | AD22: ≤1,00 | AE22: 1 | AM22: 0 | AN22: ≤0 | AO22: 1 | AP22: 35.4 | AQ22: 10943.2 | AR22: 0.003234885591 | AS22: -1 | AU22: 27 | AV22: 0 | AW22: -1 | AX22: 24893.4 | AY22: 24898.3 | AZ22: 0.9998031994 | BA22: 1 | BH22: 24893.4 | BI22: 57774 | BJ22: 25782.1 | BK22: 47834 | BL22: 0.7994111312 | BM22: 0 | BR22: 0 | BS22: 0 | BW22: 0 | CJ22: 2757.1 | CK22: 6800.4 | CL22: =(CJ22/CK22)/(#REF!/#REF!) ->  | CO22: 0 | CP22: 1 | CQ22: 1 | CU22: 2 | CV22: 0 | DJ22: 0 | DL22: 0 | DN22: 0 | DU22: от 24.02.10 №17 | DV22: 0.5 | DW22: 02.04.09 №22 | DX22: 0.5 | DY22: от 22.10.08 № 30/4 | DZ22: 0.5 | EA22: от 05.02.10 № 13 | EB22: 0.5 | ED22: 0
A23: 20 Немский | C23: 98686.6 | D23: 93601.2 | G23: 0 | H23: ≤0,05 | I23: =IF(G23<=0.05,1,0) -> 1 | J23: 2800 | K23: 293137.1 | L23: 271624.1 | N23: 0.1301538605 | O23: ≤0,5 | P23: =IF(N23<=0.5,1,0) -> 1 | Q23: 2800 | R23: 6033 | S23: 0.4641140394 | T23: ≤1,00 | U23: 1 | V23: 11039 | W23: 14203 | X23: 0.7772301626 | Y23: ≤1,00 | Z23: 1 | AA23: 1497 | AB23: 7036.2 | AC23: 0.2127568858 | AD23: ≤1,00 | AE23: 1 | AM23: 0 | AN23: ≤0 | AO23: 1 | AP23: 104.8 | AQ23: 10986 | AR23: 0.009539413799 | AS23: -1 | AU23: 34 | AV23: 0 | AW23: -1 | AX23: 21513 | AY23: 21513 | AZ23: 1 | BA23: 1 | BH23: 21513 | BI23: 36769 | BJ23: 17460 | BK23: 40767 | BL23: 1.366103716 | BM23: 1 | BR23: 0 | BS23: 0 | BV23: 349.4 | BW23: -1 | CJ23: 2800 | CK23: 5084.4 | CL23: =(CJ23/CK23)/(#REF!/#REF!) ->  | CO23: 0 | CQ23: 1 | CU23: 1 | CV23: 0 | DJ23: 0 | DL23: 0 | DN23: 0 | DV23: 0 | DW23: 10.11.08 №71 | DX23: 0.5 | DZ23: 0 | EB23: 0 | ED23: 0
A24: 21 Нолинский | C24: 84720.9 | D24: 58775 | G24: 0 | H24: ≤0,10 | I24: =IF(G24<=0.1,1,0) -> 1 | K24: 340932.5 | L24: 278139.5 | N24: 0 | O24: ≤1,00 | P24: =IF(N24<=1,1,0) -> 1 | R24: 10000 | S24: 0 | T24: ≤1,00 | U24: 1 | V24: 12819.5 | W24: 16577 | X24: 0.7733305182 | Y24: ≤1,00 | Z24: 1 | AA24: 1839.1 | AB24: 7774.8 | AC24: 0.2365462777 | AD24: ≤1,00 | AE24: 1 | AM24: 0 | AN24: ≤0 | AO24: 1 | AP24: 3331.7 | AQ24: 28037.8 | AR24: 0.1188288667 | AS24: -1 | AU24: 42 | AV24: 0 | AW24: -1 | AX24: 62792.9 | AY24: 56121.5 | AZ24: 1.118874228 | BA24: 0.5 | BH24: 62792.9 | BI24: 57227 | BJ24: 75091.4 | BK24: 49360 | BL24: 0.7212644232 | BM24: 0 | BR24: 0 | BS24: 0 | BV24: 0.9 | BW24: -1 | CK24: 25945.8 | CL24: 0 | CM24: 1 | CO24: 0 | CQ24: 1 | CU24: 1 | CV24: 0 | DJ24: 0 | DL24: 0 | DN24: 0 | DU24: 12.04.10 №378 | DV24: 0.5 | DW24: 23.07.08 №363 | DX24: 0.5 | DY24: 03.10.05 №36/440 | DZ24: 0.5 | EB24: 0 | ED24: 0 | EG24: 6
A25: 22 Омутнинский | C25: 128229.1 | D25: 98988.5 | G25: 0 | H25: ≤0,10 | I25: =IF(G25<=0.1,1,0) -> 1 | J25: 32000 | K25: 459136.8 | L25: 337343.8 | N25: 0.26274088 | O25: ≤1,00 | P25: =IF(N25<=1,1,0) -> 1 | Q25: 32000 | R25: 97000 | S25: 0.3298969072 | T25: ≤1,00 | U25: 1 | V25: 17594.4 | W25: 22034 | X25: 0.7985113915 | Y25: ≤1,00 | Z25: 1 | AA25: 3096.7 | AB25: 12519.9 | AC25: 0.2473422312 | AD25: ≤1,00 | AE25: 1 | AM25: 0 | AN25: ≤0 | AO25: 1 | AP25: 17558.9 | AQ25: 53547.7 | AR25: 0.3279113762 | AS25: 2 | AU25: 60 | AV25: 0 | AW25: -1 | AX25: 121793 | AY25: 121793 | AZ25: 1 | BA25: 1 | BH25: 121793 | BI25: 107735 | BJ25: 123278.2 | BK25: 71717 | BL25: 0.6576598693 | BM25: 0 | BR25: 0 | BS25: 0 | BV25: 3015.3 | BW25: -1 | CJ25: 32000 | CK25: 29240.6 | CL25: =(CJ25/CK25)/(#REF!/#REF!) ->  | CO25: 0 | CP25: 1 | CQ25: 1 | CT25: 1 | CU25: 3 | CV25: 0 | DJ25: 0 | DK25: 19.04.10 №595 | DL25: 1 | DN25: 0 | DU25: 28.04.08 №23 | DV25: 0.5 | DW25: 06.04.09 № 23 | DX25: 0.5 | DY25: 05.10.05 №58 | DZ25: 0.5 | EB25: 0 | ED25: 0
A26: 23 Опаринский | C26: 40432.4 | D26: 32547.2 | G26: 0 | H26: ≤0,05 | I26: =IF(G26<=0.05,1,0) -> 1 | J26: 1300 | K26: 196923.5 | L26: 164921 | N26: 0.04062182642 | O26: ≤0,5 | P26: =IF(N26<=0.5,1,0) -> 1 | Q26: 1300 | R26: 6924.9 | S26: 0.1877283426 | T26: ≤1,00 | U26: 1 | V26: 15628.7 | W26: 16120 | X26: 0.9695223325 | Y26: ≤1,00 | Z26: 1 | AA26: 2402.8 | AB26: 8827.5 | AC26: 0.2721948457 | AD26: ≤1,00 | AE26: 1 | AM26: 0 | AN26: ≤0 | AO26: 1 | AP26: 110 | AQ26: 23325 | AR26: 0.004715969989 | AS26: -1 | AU26: 57 | AV26: 0 | AW26: -1 | AX26: 32002.5 | AY26: 31948.9 | AZ26: 1.001677679 | BA26: 1 | BH26: 32002.5 | BI26: 65567 | BJ26: 32685.1 | BK26: 63404 | BL26: 0.9468156601 | BM26: 0 | BR26: 0 | BS26: 0 | BV26: 492.7 | BW26: -1 | CJ26: 1300 | CK26: 7885.2 | CL26: более 1 | CM26: 0 | CO26: 0 | CP26: 1 | CQ26: 1 | CR26: 1 | CU26: 3 | CV26: 0 | DJ26: 0 | DL26: 0 | DN26: 0 | DV26: 0 | DW26: от 22.04.08 № 29/05 | DX26: 0.5 | DZ26: 0 | EB26: 0 | ED26: 0 | EG26: 4.5
A27: 24 Оричевский | C27: 87307 | D27: 61664.4 | G27: 0 | H27: ≤0,10 | I27: =IF(G27<=0.1,1,0) -> 1 | J27: 10038.76 | K27: 400746.2 | L27: 287883.2 | N27: 0.08894642177 | O27: ≤1,00 | P27: =IF(N27<=1,1,0) -> 1 | Q27: 10038.76 | R27: 19500 | S27: 0.5148082051 | T27: ≤1,00 | U27: 1 | V27: 13460.9 | W27: 17705 | X27: 0.7602880542 | Y27: ≤1,00 | Z27: 1 | AA27: 2086.1 | AB27: 9001.6 | AC27: 0.2317476893 | AD27: ≤1,00 | AE27: 1 | AM27: 0 | AN27: ≤0 | AO27: 1 | AP27: 834.6 | AQ27: 39219.4 | AR27: 0.02128028476 | AS27: -1 | AU27: 55 | AV27: 0 | AW27: -1 | AX27: 112863 | AY27: 111233 | AZ27: 1.014653925 | BA27: 1 | BH27: 112863 | BI27: 52062 | BJ27: 123822 | BK27: 31996 | BL27: 0.5601813112 | BM27: 0 | BR27: 0 | BS27: 0 | BV27: 102.5 | BW27: -1 | CJ27: 10038.76 | CK27: 25642.6 | CL27: =(CJ27/CK27)/(#REF!/#REF!) ->  | CO27: 0 | CS27: 1 | CT27: 1 | CU27: 2 | CV27: 0 | DJ27: 0 | DK27: от 19.04.10 № 135 | DL27: 1 | DM27: от 19.04.10 № 133 | DN27: 0.5 | DU27: от 02.09.09 № 370 | DV27: 0.5 | DW27: от 11.07.08 № 368 | DX27: 0.5 | DY27: от 29.05.09 № 37/2 | DZ27: 0.5 | EB27: 0 | ED27: 0
A28: 25 Пижанский | C28: 40826.7 | D28: 34887 | G28: 0 | H28: ≤0,05 | I28: =IF(G28<=0.05,1,0) -> 1 | K28: 173256.2 | L28: 148959 | N28: 0 | O28: ≤0,5 | P28: =IF(N28<=0.5,1,0) -> 1 | R28: 0 | S28: 0 | T28: ≤1,00 | U28: 1 | V28: 11277.8 | W28: 14322 | X28: 0.7874458874 | Y28: ≤1,00 | Z28: 1 | AA28: 1523.4 | AB28: 6475 | AC28: 0.2352741313 | AD28: ≤1,00 | AE28: 1 | AM28: 0 | AN28: ≤0 | AO28: 1 | AP28: 2.7 | AQ28: 9401.3 | AR28: 0.0002871943242 | AS28: -1 | AU28: 31 | AV28: 0 | AW28: -1 | AX28: 24297.2 | AY28: 24197.2 | AZ28: 1.00413271 | BA28: 1 | BH28: 24297.2 | BI28: 59901 | BJ28: 22769.2 | BK28: 53421 | BL28: 0.9516700404 | BM28: 0 | BR28: 0 | BS28: 0 | BW28: 0 | CK28: 5939.7 | CL28: 0 | CM28: 1 | CO28: 0 | CP28: 1 | CQ28: 1 | CU28: 2 | CV28: 0 | DJ28: 0 | DK28: 13.04.10 №54 | DL28: 1 | DM28: 08.04.10 №52 | DN28: 0.5 | DU28: 13.04.10 №55 | DV28: 0.5 | DW28: 05.05.08 №27 | DX28: 0.5 | DY28: 09.11.05 №36/300 | DZ28: 0.5 | EB28: 0 | ED28: 0 | EG28: 7.5
A29: 26 Подосиновский | C29: 64850.3 | D29: 54331.8 | G29: 0 | H29: ≤0,05 | I29: =IF(G29<=0.05,1,0) -> 1 | J29: 687.99 | K29: 240685.1 | L29: 193064.1 | N29: 0.01444719766 | O29: ≤0,5 | P29: =IF(N29<=0.5,1,0) -> 1 | Q29: 687.99 | R29: 25000 | S29: =Q29/R29 -> 0.0275196 | T29: ≤1,00 | U29: 1 | V29: 15676 | W29: 16965 | X29: 0.9240200413 | Y29: ≤1,00 | Z29: 1 | AA29: 2163.2 | AB29: 9239.7 | AC29: 0.2341201554 | AD29: ≤1,00 | AE29: 1 | AK29: 406.801 | AM29: 406.8 | AN29: ≤0 | AO29: 0 | AP29: 634.4 | AQ29: 29408.2 | AR29: 0.02157221455 | AS29: -1 | AU29: 38 | AV29: 0 | AW29: -1 | AX29: 47621 | AY29: 47621 | AZ29: 1 | BA29: 1 | BH29: 47621 | BI29: 74123 | BJ29: 45939.2 | BK29: 68863 | BL29: 0.9630482211 | BM29: 0 | BR29: 0 | BS29: 0 | BV29: 418.8 | BW29: -1 | CJ29: 687.99 | CK29: 10518.4 | CL29: =(CJ29/CK29)/(#REF!/#REF!) ->  | CO29: 0 | CR29: 1 | CU29: 1 | CV29: 0 | DJ29: 0 | DL29: 0 | DM29: от 30.03.10 № 26 | DN29: 0.5 | DU29: от 23.03.09 № 44 | DV29: 0.5 | DW29: от 13.10.08 №76 | DX29: 0.5 | DY29: от 05.05.05 №43/24 | DZ29: 0.5 | EB29: 0 | ED29: 0
A30: 27 Санчурский | C30: 34746.1 | D30: 29886.9 | G30: 0 | H30: ≤0,05 | I30: =IF(G30<=0.05,1,0) -> 1 | K30: 172214.8 | L30: 154556.1 | N30: 0 | O30: ≤0,5 | P30: =IF(N30<=0.5,1,0) -> 1 | R30: 200 | S30: =Q30/R30 -> 0 | T30: ≤1,00 | U30: 1 | V30: 11468.1 | W30: 14495 | X30: 0.7911762677 | Y30: ≤1,00 | Z30: 1 | AA30: 1449.5 | AB30: 6823 | AC30: 0.2124432068 | AD30: ≤1,00 | AE30: 1 | AM30: 0 | AN30: ≤0 | AO30: 1 | AP30: 78.6 | AQ30: 5976.1 | AR30: 0.01315239035 | AS30: -1 | AU30: 30 | AV30: 0 | AW30: -1 | AX30: 17658.7 | AY30: 17717.4 | AZ30: 0.9966868728 | BA30: 1 | BH30: 17658.7 | BI30: 44557 | BJ30: 15853.8 | BK30: 36581 | BL30: 0.9144605706 | BM30: 0 | BR30: 0 | BS30: 0 | BW30: 0 | CK30: 4859.2 | CL30: 0 | CM30: 1 | CO30: 0 | CP30: 1 | CQ30: 1 | CR30: 0 | CS30: 0 | CT30: 0 | CU30: 2 | CV30: 0 | DJ30: 0 | DL30: 0 | DN30: 0 | DV30: 0 | DW30: 20.07.06 №28 | DX30: 0.5 | DY30: от 10.08.05 №29/276 | DZ30: 0.5 | EB30: 0 | ED30: 0 | EG30: 7
A31: 28 Свечинский | C31: 21423.1 | D31: 16469.1 | G31: 0 | H31: ≤0,10 | I31: =IF(G31<=0.1,1,0) -> 1 | K31: 120301.7 | L31: 97187.3 | N31: 0 | O31: ≤1,00 | P31: =IF(N31<=1,1,0) -> 1 | R31: 0 | S31: 0 | T31: ≤1,00 | U31: 1 | V31: 11041.4 | W31: 14322 | X31: 0.7709398129 | Y31: ≤1,00 | Z31: 1 | AA31: 1714 | AB31: 6887.9 | AC31: 0.2488421725 | AD31: ≤1,00 | AE31: 1 | AM31: 0 | AN31: ≤0 | AO31: 1 | AP31: 0 | AQ31: 8321.5 | AR31: 0 | AS31: -1 | AU31: 26 | AV31: 0 | AW31: -1 | AX31: 23114.4 | AY31: 23364.4 | AZ31: 0.9892999606 | BA31: 1 | BH31: 23114.4 | BI31: 29276 | BJ31: 21694 | BK31: 23323 | BL31: 0.8488201146 | BM31: 0 | BR31: 0 | BS31: 0 | BW31: 0 | CK31: 4954.1 | CL31: 0 | CM31: 1 | CO31: 0 | CP31: 1 | CQ31: 1 | CR31: 0 | CS31: 0 | CT31: 0 | CU31: 2 | CV31: 0 | DJ31: 0 | DK31: от 30.03.10 № 196 | DL31: 1 | DN31: 0 | DU31: от 11.02.2010 № 67 | DV31: 0.5 | DW31: 05.02.2010 № 56 | DX31: 0.5 | DY31: от20.07.05 № 48/263 | DZ31: 0.5 | EB31: 0 | ED31: 0 | EG31: 7.5
A32: 29 Слободской | C32: 96265.4 | D32: 79886.9 | G32: 0 | H32: ≤0,05 | I32: =IF(G32<=0.05,1,0) -> 1 | J32: 14068.38 | K32: 469552.1 | L32: 409698.1 | N32: 0.2350449427 | O32: ≤0,5 | P32: =IF(N32<=0.5,1,0) -> 1 | Q32: 14068.38 | R32: 28600 | S32: =Q32/R32 -> 0.4919013986 | T32: ≤1,00 | U32: 1 | V32: 14806.5 | W32: 17738 | X32: 0.8347333409 | Y32: ≤1,00 | Z32: 1 | AA32: 2519.2 | AB32: 9830.6 | AC32: 0.2562610624 | AD32: ≤1,00 | AE32: 1 | AM32: 0 | AN32: ≤0 | AO32: 1 | AP32: 557.2 | AQ32: 41455.8 | AR32: 0.01344082131 | AS32: -1 | AU32: 102 | AV32: 0 | AW32: -1 | AX32: 59854 | AY32: 57298.1 | AZ32: 1.044607064 | BA32: 1 | BH32: 59854 | BI32: 119102 | BJ32: 58468.2 | BK32: 97252 | BL32: 0.8358973386 | BM32: 0 | BR32: 0 | BS32: 0 | BV32: 2556.9 | BW32: -1 | CJ32: 14068.38 | CK32: 16378.5 | CL32: =(CJ32/CK32)/(#REF!/#REF!) ->  | CO32: 0 | CQ32: 1 | CU32: 1 | CV32: 0 | DJ32: 0 | DL32: 0 | DN32: 0 | DU32: 19.03.10 №75 | DV32: 0.5 | DW32: 31.12.08 №405 | DX32: 0.5 | DY32: 09.08.05 №41/463 | DZ32: 0.5 | EB32: 0 | ED32: 0
A33: 30 Советский | C33: 75655.3 | D33: 56842.1 | G33: 0 | H33: ≤0,10 | I33: =IF(G33<=0.1,1,0) -> 1 | K33: 362897.9 | L33: 282834.1 | N33: 0 | O33: ≤1,00 | P33: =IF(N33<=1,1,0) -> 1 | R33: 5323 | S33: =Q33/R33 -> 0 | T33: ≤1,00 | U33: 1 | V33: 14929.2 | W33: 17139 | X33: 0.8710659898 | Y33: ≤1,00 | Z33: 1 | AA33: 1949.8 | AB33: 8019.6 | AC33: 0.2431293331 | AD33: ≤1,00 | AE33: 1 | AM33: 0 | AN33: ≤0 | AO33: 1 | AP33: 950 | AQ33: 19678 | AR33: 0.04827726395 | AS33: -1 | AU33: 46 | AV33: 0 | AW33: -1 | AX33: 80063.9 | AY33: 81666.8 | AZ33: 0.9803726851 | BA33: 1 | BH33: 80063.9 | BI33: 77597 | BJ33: 73607.1 | BK33: 71031 | BL33: 0.9956805679 | BM33: 0 | BR33: 0 | BS33: 0 | BW33: 0 | CK33: 18813.3 | CL33: 0 | CM33: 1 | CO33: 0 | CP33: 1 | CQ33: 1 | CU33: 2 | CV33: 0 | DJ33: 0 | DL33: 0 | DN33: 0 | DU33: 02.04.10 №215 | DV33: 0.5 | DW33: 04.12.09 №737 | DX33: 0.5 | DY33: 24.08.06 №74 | DZ33: 0.5 | EB33: 0 | ED33: 0 | EG33: 7.5
A34: 31 Сунский | C34: 22406.7 | D34: 18100.3 | G34: 0 | H34: ≤0,05 | I34: =IF(G34<=0.05,1,0) -> 1 | K34: 139361.7 | L34: 119527 | N34: 0 | O34: ≤0,5 | P34: =IF(N34<=0.5,1,0) -> 1 | R34: 0 | S34: 0 | T34: ≤1,00 | U34: 1 | V34: 11189.7 | W34: 13382 | X34: 0.8361754596 | Y34: ≤1,00 | Z34: 1 | AA34: 1518.8 | AB34: 6477.6 | AC34: 0.2344695566 | AD34: ≤1,00 | AE34: 1 | AM34: 0 | AN34: ≤0 | AO34: 1 | AP34: 28.1 | AQ34: 11875.1 | AR34: 0.002366295863 | AS34: -1 | AU34: 22 | AV34: 0 | AW34: -1 | AX34: 19834.7 | AY34: 19834.7 | AZ34: 1 | BA34: 1 | BH34: 19834.7 | BI34: 27352 | BJ34: 16181.6 | BK34: 26911 | BL34: 1.205993378 | BM34: 1 | BR34: 0 | BS34: 0 | BW34: 0 | CK34: 4306.4 | CL34: 0 | CM34: 1 | CO34: 0 | CP34: 1 | CQ34: 1 | CU34: 2 | CV34: 0 | DJ34: 0 | DK34: 13.04.10 №34 | DL34: 1 | DM34: 12.04.10 №32 | DN34: 0.5 | DU34: 10.03.10 №17 | DV34: 0.5 | DW34: 29.03.10 №25 | DX34: 0.5 | DY34: 10.08.05 №36 | DZ34: 0.5 | EA34: 13.04.10 №33 | EB34: 0.5 | ED34: 0 | EG34: 7.5
A35: 32 Тужинский | C35: 28148.6 | D35: 23989.5 | G35: 0 | H35: ≤0,05 | I35: 1 | J35: 564.9 | K35: 117139.3 | L35: 99402.1 | N35: 0.03184831879 | O35: ≤0,5 | P35: 1 | Q35: 564.9 | R35: 6864.9 | S35: =Q35/R35 -> 0.08228816152 | T35: ≤1,00 | U35: 1 | V35: 8277.2 | W35: 13672 | X35: 0.6054125219 | Y35: ≤1,00 | Z35: 1 | AA35: 1486.8 | AB35: 6098.1 | AC35: 0.2438136469 | AD35: ≤1,00 | AE35: 1 | AM35: 0 | AN35: ≤0 | AO35: 1 | AP35: 591.6 | AQ35: 15041 | AR35: 0.03933249119 | AS35: -1 | AU35: 22 | AV35: 0 | AW35: -1 | AX35: 17737.2 | AY35: 17737.2 | AZ35: 1 | BA35: 1 | BH35: 17737.2 | BI35: 36970 | BJ35: 20104.8 | BK35: 32817 | BL35: 0.783131571 | BM35: 0 | BR35: 0 | BS35: 0 | BV35: 2508.5 | BW35: -1 | CJ35: 564.9 | CK35: 4159.1 | CL35: =(CJ35/CK35)/(#REF!/#REF!) ->  | CO35: 0 | CR35: 1 | CU35: 1 | CV35: 0 | DJ35: 0 | DL35: 0 | DN35: 0 | DU35: 23.12.09 №590 | DV35: 0.5 | DW35: 23.12.09 №590 | DX35: 0.5 | DY35: 09.08.05 №25/275 | DZ35: 0.5 | EB35: 0 | ED35: 0
A36: 33 Унинский | B36: 10656.8 | C36: 34996.3 | D36: 28654.9 | F36: =6906.8+3750 -> 10656.8 | G36: =(B36-F36)/(C36-D36-E36) -> 0 | H36: ≤0,05 | I36: 1 | J36: 5050 | K36: 189589.7 | L36: 163730.4 | N36: 0.1952875755 | O36: ≤0,5 | P36: 1 | Q36: 5050 | R36: 7300 | S36: 0.6917808219 | T36: ≤1,00 | U36: 1 | V36: 12712.9 | W36: 14588 | X36: 0.8714628462 | Y36: ≤1,00 | Z36: 1 | AA36: 1763.5 | AB36: 8150.8 | AC36: 0.2163591304 | AD36: ≤1,00 | AE36: 1 | AM36: 0 | AN36: ≤0 | AO36: 1 | AP36: 1329.9 | AQ36: 20209.2 | AR36: 0.06580666231 | AS36: -1 | AU36: 37 | AV36: 0 | AW36: -1 | AX36: 25859.3 | AY36: 25640.3 | AZ36: 1.008541242 | BA36: 1 | BH36: 25859.3 | BI36: 49215 | BJ36: 24553.3 | BK36: 45018 | BL36: 0.9633755096 | BM36: 0 | BR36: 0 | BS36: 0 | BW36: 0 | CJ36: 5050 | CK36: 6341.3 | CL36: =(CJ36/CK36)/(#REF!/#REF!) ->  | CO36: 0 | CP36: 1 | CQ36: 1 | CR36: 1 | CT36: 1 | CU36: 4 | CV36: 0 | DJ36: 0 | DL36: 0 | DN36: 0 | DU36: 31.03.10 №257а | DV36: 0.5 | DW36: 24.08.10 №223 | DX36: 0.5 | DY36: 09.09.05 №223 | DZ36: 0.5 | EB36: 0 | ED36: 0
A37: 34 Уржумский | B37: 292.6 | C37: 84373.4 | D37: 66758.7 | G37: =(B37)/(C37-D37-E37) -> 0.01661112593 | H37: ≤0,05 | I37: 1 | K37: 374669.1 | L37: 295336.4 | N37: 0 | O37: ≤0,5 | P37: 1 | R37: 5165 | S37: 0 | T37: ≤1,00 | U37: 1 | V37: 13559.9 | W37: 17919 | X37: 0.7567330766 | Y37: ≤1,00 | Z37: 1 | AA37: 2061.7 | AB37: 8814.2 | AC37: 0.2339066506 | AD37: ≤1,00 | AE37: 1 | AM37: 0 | AN37: ≤0 | AO37: 1 | AP37: 801.7 | AQ37: 33334.8 | AR37: 0.0240499418 | AS37: -1 | AU37: 100 | AV37: 0 | AW37: -1 | AX37: 79332.7 | AY37: 76568.7 | AZ37: 1.036098301 | BA37: 1 | BH37: 79332.7 | BI37: 59272 | BJ37: 65979 | BK37: 75250 | BL37: 1.526523269 | BM37: 1 | BR37: 0 | BS37: 0 | BW37: 0 | CK37: 17614.6 | CL37: 0 | CM37: 1 | CO37: 0 | CP37: 1 | CQ37: 1 | CR37: 1 | CS37: 1 | CT37: 1 | CU37: 5 | CV37: 1 | DJ37: 0 | DK37: 13.04.10 №295 | DL37: 1 | DN37: 0 | DU37: 20.09.07 №883 | DV37: 0.5 | DW37: 01.09.09 №712 | DX37: 0.5 | DY37: 28.06.06 №4/30 | DZ37: 0.5 | EA37: 01.02.10 №67 | EB37: 0.5 | ED37: 0 | EG37: 8.5
A38: 35 Фаленский | C38: 46901.1 | D38: 40397.1 | G38: 0 | H38: ≤0,05 | I38: 1 | J38: 680 | K38: 200979.9 | L38: 172970.9 | N38: 0.02427791067 | O38: ≤0,5 | P38: 1 | Q38: 680 | R38: 1000 | S38: 0.68 | T38: ≤1,00 | U38: 1 | V38: 13171.7 | W38: 14574 | X38: 0.9037807054 | Y38: ≤1,00 | Z38: 1 | AA38: 1990.5 | AB38: 7933.9 | AC38: 0.250885441 | AD38: ≤1,00 | AE38: 1 | AM38: 0 | AN38: ≤0 | AO38: 1 | AP38: 233.8 | AQ38: 22965.4 | AR38: 0.01018053245 | AS38: -1 | AU38: 37 | AV38: 0 | AW38: -1 | AX38: 28009 | AY38: 28009 | AZ38: 1 | BA38: 1 | BH38: 28009 | BI38: 60199 | BJ38: 24450 | BK38: 52693 | BL38: 1.002726259 | BM38: 1 | BR38: 0 | BS38: 0 | BV38: 553.7 | BW38: -1 | CJ38: 680 | CK38: 6504 | CL38: более 1 | CM38: 0 | CO38: 0 | CP38: 1 | CQ38: 1 | CR38: 1 | CU38: 3 | CV38: 0 | DJ38: 0 | DL38: 0 | DN38: 0 | DU38: 02.04.10 №116 | DV38: 0.5 | DW38: 17.04.09 №29 | DX38: 0.5 | DY38: 28.10.05 №31/274 | DZ38: 0.5 | EB38: 0 | ED38: 0 | EG38: 5.5
A39: 36 Орловский | C39: 37581.5 | D39: 29296.5 | G39: 0 | H39: ≤0,05 | I39: 1 | J39: 607.1 | K39: 162810.9 | L39: 126819.8 | N39: 0.01686805905 | O39: ≤0,5 | P39: 1 | Q39: 607.1 | R39: 3962 | S39: 0.1532306916 | T39: ≤1,00 | U39: 1 | V39: 12565.5 | W39: 14720 | X39: 0.8536345109 | Y39: ≤1,00 | Z39: 1 | AA39: 1810.3 | AB39: 8405 | AC39: 0.2153837002 | AD39: ≤1,00 | AE39: 1 | AM39: 0 | AN39: ≤0 | AO39: 1 | AP39: 55.9 | AQ39: 14326.9 | AR39: 0.003901751251 | AS39: -1 | AU39: 35 | AV39: 0 | AW39: -1 | AX39: 35991.1 | AY39: 35901.1 | AZ39: 1.002506887 | BA39: 1 | BH39: 35991.1 | BI39: 56429 | BJ39: 31975.8 | BK39: 48957 | BL39: 0.9765312472 | BM39: 0 | BR39: 0 | BS39: 0 | BW39: 0 | CJ39: 607.1 | CK39: 8284.9 | CL39: более 1 | CM39: 0 | CN39: 9 | CO39: -1 | CP39: 1 | CQ39: 1 | CR39: 1 | CU39: 3 | CV39: 0 | DJ39: 0 | DL39: 0 | DN39: 0 | DV39: 0 | DW39: 16.07.08 №37-п | DX39: 0.5 | DY39: 14.10.05 №35/396 | DZ39: 0.5 | EB39: 0 | ED39: 0 | EG39: 5
A40: 37 Шабалинский | C40: 31924.3 | D40: 25402.5 | G40: 0 | H40: ≤0,05 | I40: 1 | K40: 153677.8 | L40: 126417 | N40: 0 | O40: ≤0,5 | P40: 1 | R40: 2580 | S40: 0 | T40: ≤1,00 | U40: 1 | V40: 15502 | W40: 15530 | X40: 0.998197038 | Y40: ≤1,00 | Z40: 1 | AA40: 1878 | AB40: 7637 | AC40: 0.2459080791 | AD40: ≤1,00 | AE40: 1 | AM40: 0 | AN40: ≤0 | AO40: 1 | AP40: 237.6 | AQ40: 4743.7 | AR40: 0.05008748445 | AS40: -1 | AU40: 28 | AV40: 0 | AW40: -1 | AX40: 27260.8 | AY40: 27022.7 | AZ40: 1.008811111 | BA40: 1 | BH40: 27260.8 | BI40: 54193 | BJ40: 24771.4 | BK40: 38325 | BL40: 0.7782641305 | BM40: 0 | BR40: 0 | BS40: 0 | BW40: 0 | CK40: 6521.8 | CL40: 0 | CM40: 1 | CO40: 0 | CP40: 1 | CQ40: 1 | CR40: 1 | CS40: 1 | CT40: 1 | CU40: 5 | CV40: 1 | DJ40: 0 | DK40: 06.04.10 №222 | DL40: 1 | DM40: 11.03.10 №140 | DN40: 0.5 | DU40: 12.05.09 №41 | DV40: 0.5 | DW40: 13.10.09 №106 | DX40: 0.5 | DY40: 20.02.06 №41/449 | DZ40: 0.5 | EB40: 0 | EC40: 06.04.10 №222 | ED40: 0.5 | EG40: 9
A41: 38 Юрьянский | B41: 1281.1 | C41: 53788.7 | D41: 39689.9 | G41: 0.0908658893 | H41: ≤0,10 | I41: =IF(G41<=0.1,1,0) -> 1 | J41: 6900 | K41: 286436.9 | L41: 222416.4 | N41: 0.1077779774 | O41: ≤1,00 | P41: =IF(N41<=1,1,0) -> 1 | Q41: 6900 | R41: 10000 | S41: 0.69 | T41: ≤1,00 | U41: 1 | V41: 15672.2 | W41: 16679 | X41: 0.9396366689 | Y41: ≤1,00 | Z41: 1 | AA41: 2235.8 | AB41: 9326.3 | AC41: 0.2397306542 | AD41: ≤1,00 | AE41: 1 | AM41: 0 | AN41: ≤0 | AO41: 1 | AP41: 276.5 | AQ41: 25729.2 | AR41: 0.01074654478 | AS41: -1 | AU41: 38 | AV41: 0 | AW41: -1 | AX41: 64020.5 | AY41: 63772.4 | AZ41: 1.003890398 | BA41: 1 | BH41: 64020.5 | BI41: 76593 | BJ41: 78337.9 | BK41: 61221 | BL41: 0.6532184989 | BM41: 0 | BR41: 0 | BS41: 0 | BW41: 0 | CJ41: 6900 | CK41: 14098.8 | CL41: =(CJ41/CK41)/(#REF!/#REF!) ->  | CO41: 0 | CP41: 1 | CQ41: 1 | CR41: 1 | CS41: 1 | CT41: 1 | CU41: 5 | CV41: 1 | DJ41: 0 | DK41: 20.04.10 №104 | DL41: 1 | DM41: 20.04.10 №103 | DN41: 0.5 | DU41: 09.04.10 №91 | DV41: 0.5 | DW41: 26.02.09 №54 | DX41: 0.5 | DY41: 28.09.05 29/10 | DZ41: 0.5 | EB41: 0 | ED41: 0
A42: 39 Яранский | B42: 141.5 | C42: 68270.9 | D42: 50088.9 | G42: 0.007782422176 | H42: ≤0,10 | I42: =IF(G42<=0.1,1,0) -> 1 | K42: 323957.8 | L42: 255031.4 | N42: 0 | O42: ≤1,00 | P42: =IF(N42<=1,1,0) -> 1 | R42: 5146.2 | S42: 0 | T42: ≤1,00 | U42: 1 | V42: 14710.4 | W42: 17404 | X42: 0.8452309814 | Y42: ≤1,00 | Z42: 1 | AA42: 2090.4 | AB42: 8335.5 | AC42: 0.2507827965 | AD42: ≤1,00 | AE42: 1 | AM42: 0 | AN42: ≤0 | AO42: 1 | AP42: 90.2 | AQ42: 32971.4 | AR42: 0.002735704277 | AS42: -1 | AU42: 43 | AV42: 0 | AW42: -1 | AX42: 68926.4 | AY42: 69205.9 | AZ42: 0.995961327 | BA42: 1 | BH42: 68926.4 | BI42: 78991 | BJ42: 67132.5 | BK42: 67487 | BL42: 0.8771932609 | BM42: 0 | BR42: 0 | BS42: 0 | BW42: 0 | CK42: 18182 | CL42: =(CJ42/CK42)/(#REF!/#REF!) ->  | CO42: 0 | CP42: 1 | CQ42: 1 | CU42: 2 | CV42: 0 | DJ42: 0 | DL42: 0 | DN42: 0 | DU42: 31.07.09 №54 | DV42: 0.5 | DW42: от 11.08.09 № 60 | DX42: 0.5 | DY42: от 27.10.09 №321 | DZ42: 0.5 | EB42: 0 | ED42: 0
A43: 40 ЗАТО | C43: 35201.8 | D43: 30585.5 | G43: 0 | H43: ≤0,05 | I43: =IF(G43<=0.05,1,0) -> 1 | K43: 168731.9 | L43: 138933.8 | N43: 0 | O43: ≤0,5 | P43: =IF(N43<=0.5,1,0) -> 1 | R43: 0 | S43: 0 | T43: ≤1,00 | U43: 1 | V43: 16482.9 | W43: 16483 | X43: 0.9999939331 | Y43: ≤1,00 | Z43: 1 | AA43: 1685 | AB43: 7770.1 | AC43: 0.2168569259 | AD43: ≤1,00 | AE43: 1 | AM43: 0 | AN43: ≤0 | AO43: 1 | AP43: 2228.5 | AQ43: 27428.4 | AR43: 0.08124790363 | AS43: -1 | AU43: 13 | AV43: 0 | AW43: -1 | AX43: 29798.1 | AY43: 30901.7 | AZ43: 0.9642867545 | BA43: 1 | BH43: 29798.1 | BI43: 11155 | BJ43: 23009.5 | BK43: 34977 | BL43: 4.060638932 | BM43: 1 | BR43: 0 | BS43: 0 | BW43: 0 | CK43: 4616.3 | CL43: 0 | CM43: 1 | CN43: 1 | CO43: -1 | CP43: 1 | CQ43: 1 | CR43: 1 | CU43: 3 | CV43: 0 | DJ43: 0 | DL43: 1 | DN43: 0 | DV43: 0 | DW43: 08.02.10 №05 | DX43: 0.5 | DY43: 25.07.05 №44/7 | DZ43: 0.5 | EB43: 0 | ED43: 0 | EG43: 6
A44: 41 г.Вятские Поляны | C44: 88569.3 | D44: 46747.7 | G44: 0 | H44: ≤0,10 | I44: =IF(G44<=0.1,1,0) -> 1 | J44: 4365 | K44: 371537.6 | L44: 193391.6 | N44: 0.02450237446 | O44: ≤1,00 | P44: =IF(N44<=1,1,0) -> 1 | Q44: 4365 | R44: 6050 | S44: =Q44/R44 -> 0.7214876033 | T44: ≤1,00 | U44: 1 | V44: 16344 | W44: 19570 | X44: 0.8351558508 | Y44: ≤1,00 | Z44: 1 | AA44: 2469.7 | AB44: 10745.1 | AC44: 0.2298443011 | AD44: ≤1,00 | AE44: 1 | AM44: 0 | AN44: ≤0 | AO44: 1 | AP44: 496 | AQ44: 52973 | AR44: 0.009363260529 | AS44: -1 | AT44: 1 | AU44: 38 | AV44: 0.02631578947 | AW44: -1 | AX44: 178146 | AY44: 178146 | AZ44: 1 | BA44: 1 | BH44: 178146 | BI44: 57255 | BJ44: 206874 | BK44: 54169 | BL44: 0.8147184714 | BM44: 0 | BR44: 0 | BS44: 0 | BW44: 0 | CJ44: 4365 | CK44: 41821.6 | CL44: более 1 | CM44: 0 | CO44: 0 | CP44: 1 | CQ44: 1 | CR44: 1 | CS44: 1 | CT44: 1 | CU44: 5 | CV44: 1 | DJ44: 0 | DL44: 1 | DM44: 08.07.09 №1030 | DN44: 0.5 | DU44: 16.10.09 №1649 | DV44: 0.5 | DW44: 16.10.09 №1649 | DX44: 0.5 | DY44: 20.12.05 №99 | DZ44: 0.5 | EB44: 0 | ED44: 0 | EG44: 7.5
A45: 42 г.Кирово-Чепецк | C45: 170280.7 | D45: 50544.2 | G45: 0 | H45: ≤0,10 | I45: =IF(G45<=0.1,1,0) -> 1 | J45: 31569.49 | K45: 876568.4 | L45: 323835.5 | N45: 0.05711527213 | O45: ≤1,00 | P45: =IF(N45<=1,1,0) -> 1 | Q45: 31569.49 | R45: 73000 | S45: =Q45/R45 -> 0.4324587671 | T45: ≤1,00 | U45: 1 | V45: 41509 | W45: 41509 | X45: 1 | Y45: ≤1,00 | Z45: 1 | AA45: 5552.3 | AB45: 23160.4 | AC45: 0.2397324744 | AD45: ≤1,00 | AE45: 1 | AL45: 2569.486 | AM45: =AK45/AL45 -> 0 | AN45: ≤0 | AO45: 1 | AP45: 2147.7 | AQ45: 117277.4 | AR45: 0.01831299125 | AS45: -1 | AT45: 2 | AU45: 60 | AV45: 0.03333333333 | AW45: -1 | AX45: 552732.9 | AY45: 552732.9 | AZ45: 1 | BA45: 1 | BH45: 552732.9 | BI45: 1236 | BJ45: 611539 | BK45: 3245 | BL45: 2.372943443 | BM45: 1 | BR45: 0 | BS45: 0 | BW45: 0 | CJ45: 31569.49 | CK45: 119736.5 | CL45: более 1 | CM45: 0 | CO45: 0 | CP45: 1 | CQ45: 1 | CU45: 2 | CV45: 0 | DJ45: 0 | DL45: 1 | DM45: от 24.03.10 №508; 21.10.09 №1897 | DN45: 0.5 | DU45: от 24.04.09 №638 | DV45: 0.5 | DW45: от 24.04.09 №638 | DX45: 0.5 | DY45: от 23.11.05 №16/108 | DZ45: 0.5 | EB45: 0 | ED45: 0 | EG45: 6.5
A46: 43 г.Котельнич | B46: 2233.7 | C46: 63499.5 | D46: 32153.4 | G46: 0.07125926351 | H46: ≤0,10 | I46: =IF(G46<=0.1,1,0) -> 1 | K46: 258669.4 | L46: 127650.9 | N46: 0 | O46: ≤1,00 | P46: =IF(N46<=1,1,0) -> 1 | R46: 8140 | S46: =Q46/R46 -> 0 | T46: ≤1,00 | U46: 1 | V46: 13429.5 | W46: 15214 | X46: 0.8827067175 | Y46: ≤1,00 | Z46: 1 | AA46: 1685.9 | AB46: 7794.5 | AC46: 0.2162935403 | AD46: ≤1,00 | AE46: 1 | AM46: 0 | AN46: ≤0 | AO46: 1 | AP46: 2976.8 | AQ46: 42384.1 | AR46: 0.07023388488 | AS46: -1 | AU46: 33 | AV46: 0 | AW46: -1 | AX46: 131018.5 | AY46: 132623.5 | AZ46: 0.9878980724 | BA46: 1 | BH46: 131018.5 | BI46: 33267 | BJ46: 127167.6 | BK46: 29751 | BL46: 0.9213912374 | BM46: 0 | BR46: 0 | BS46: 0 | BW46: 0 | CK46: 31346.2 | CL46: =(CJ46/CK46)/(#REF!/#REF!) ->  | CO46: 0 | CQ46: 1 | CT46: 1 | CU46: 2 | CV46: 0 | DJ46: 0 | DL46: 1 | DN46: 0 | DU46: 01.07.08 №341 | DV46: 0.5 | DW46: от 14.05.09 №262 | DX46: 0.5 | DY46: 28.06.06 №40 | DZ46: 0.5 | EB46: 0 | ED46: 0
A47: 44 г.Слободской | C47: 138543.7 | D47: 85561.9 | G47: 0 | H47: ≤0,10 | I47: =IF(G47<=0.1,1,0) -> 1 | J47: 16809.2 | K47: 550586 | L47: 326274.9 | N47: 0.07493699598 | O47: ≤1,00 | P47: =IF(N47<=1,1,0) -> 1 | Q47: 16809.2 | R47: 24200 | S47: =Q47/R47 -> 0.6945950413 | T47: ≤1,00 | U47: 1 | V47: 17035.1 | W47: 18379 | X47: 0.9268785026 | Y47: ≤1,00 | Z47: 1 | AA47: 2405.5 | AB47: 10635.8 | AC47: 0.2261701047 | AD47: ≤1,00 | AE47: 1 | AL47: 5790 | AM47: =AK47/AL47 -> 0 | AN47: ≤0 | AO47: 1 | AP47: 1407.1 | AQ47: 60935.6 | AR47: 0.02309159178 | AS47: -1 | AU47: 38 | AV47: 0 | AW47: -1 | AX47: 224311.1 | AY47: 224483.1 | AZ47: 0.9992337953 | BA47: 1 | BH47: 224311.1 | BI47: 56708 | BJ47: 211755.7 | BK47: 43214 | BL47: 0.8072272099 | BM47: 0 | BR47: 0 | BS47: 0 | BW47: 0 | CJ47: 16809.2 | CK47: 52981.9 | CL47: =(CJ47/CK47)/(#REF!/#REF!) ->  | CO47: 0 | CQ47: 1 | CU47: 1 | CV47: 0 | DJ47: 0 | DL47: 1 | DN47: 0 | DV47: 0 | DW47: 23.12.08 №88 | DX47: 0.5 | DY47: 23.11.05 №63/667 | DZ47: 0.5 | EB47: 0 | ED47: 0
A48: 45 г.Киров | C48: 1210145.7 | D48: 258362.4 | G48: 0 | H48: ≤0,10 | I48: =IF(G48<=0.1,1,0) -> 1 | J48: 177757.1 | K48: 6351273.9 | L48: 2018343.8 | N48: 0.04102468674 | O48: ≤1,00 | P48: =IF(N48<=1,1,0) -> 1 | Q48: 177757.1 | R48: 440541.3 | S48: =Q48/R48 -> 0.4034970161 | T48: ≤1,00 | U48: 1 | V48: 367531 | W48: 349243 | X48: 1.052364686 | Y48: ≤1,00 | Z48: 0 | AA48: 44120 | AB48: 180898 | AC48: 0.2438943493 | AD48: ≤1,00 | AE48: 1 | AM48: 0 | AN48: ≤0 | AO48: 1 | AP48: 53158.5 | AQ48: 876794.6 | AR48: 0.06062822467 | AS48: -1 | AT48: 10 | AU48: 295 | AV48: 0.03389830508 | AW48: -1 | AX48: 4332930.1 | AY48: 4206243 | AZ48: 1.030118826 | BA48: 1 | BH48: 4332930.1 | BI48: 7158 | BJ48: 4784485 | BK48: 1 | BL48: 0.0001265187206 | BM48: 0 | BR48: 0 | BS48: 0 | BV48: 3326 | BW48: -1 | CJ48: 177757.1 | CK48: 951783.3 | CL48: =(CJ48/CK48)/(#REF!/#REF!) ->  | CN48: 20 | CO48: -1 | CU48: 0 | CV48: 0 | DJ48: 0 | DL48: 1 | DM48: 27.06.08 №2455-П | DN48: 0.5 | DU48: 13.07.06 № 3045 | DV48: 0.5 | DW48: 23.06.08 № 2391-П | DX48: 0.5 | DY48: 26.04.06 № 53/17 | DZ48: 0.5 | EA48: 12.02.09 № 387-П | EB48: 0.5 | ED48: 0
